{"text_format":"1","workbook":"xlsx","n_sheets":4,"sheets":["使い方","3～5歳男児","3～5歳女児","早見表"],"not_rendered":{"charts":0,"images":1,"macros":1,"external_links":0,"defined_names":4,"comments":0,"pivot_tables":0},"unopened":[],"bounds":{"document_bytes":16777216,"sheet_cells":100000,"rows_first":2000,"rows_last":500,"rows_between":2000,"halvings":0,"cell_chars":16384,"cell_head_chars":4096},"cells_cut":0,"cells_raw":0,"read":"whole","date_system":"1900"}

{"sheet":"使い方","index":0,"n_rows":20,"n_cols":12,"rows_kept":20,"cut":false,"hidden":false,"merged":[[5,0,5,11],[3,0,3,11],[0,0,0,11],[1,0,1,11],[2,0,2,11],[4,0,4,11],[14,0,14,6],[14,7,14,11],[6,0,6,11],[7,0,7,11],[10,0,10,11],[8,0,8,11],[13,7,13,11],[13,0,13,6]]}
["起動時に、「マクロが無効にされました」と警告が出た場合には、「コンテンツの有効化」をしてください。\nマクロが無効にされたままだと、肥満度等が自動計算されません。"]
["３歳以上の幼児の肥満度判定区分の簡易ソフト Ver.1.0 (2014/3/27)"]
["このエクセルファイルは、「特定給食施設における栄養管理に関する指導・助言について」（厚生労働省がん対策・健康増進課栄養指導室　平成25年9月3日事務連絡）の別添「肥満並びにやせに該当する者の割合の評価方法について」に記載されている簡易ソフトです。"]
[]
["【計算シート】の使い方"]
["●計算シートの入力欄（薄緑色のセル）に、必要事項（No., 名前, 性別, 生年月日, 測定日, 身長(cm), 体重(kg)）を半角英数字で入力して下さい（性別のみ、全角文字の'男','女'も可）。肥満度等が自動計算され、「肥満度判定区分の集計表」に人数と割合が示されます。"]
["●就学前の６歳児についても自動計算されますが、就学後はブランクになります。"]
["●身長120～129cmの幼児の場合、2000年日本人小児の体格標準値（日本成長学会・日本小児内分泌学会合同標準委員会）の学童（６歳以上、身長101～139cm）の計算式で計算されます。"]
[]
["【早見表】の使い方"]
["●平成12年乳幼児身体発育調査の結果に基づく、身長別標準体重の早見表（３歳以上６歳未満の幼児）です。印刷するなどしてお使い下さい。"]
[]
["＊入力例＊"]
["↓　薄緑色の欄に入力してください　↓",null,null,null,null,null,null,"↓　この欄に自動計算結果が表示されます　↓"]
["入　力　欄",null,null,null,null,null,null,"自　動　計　算"]
["No.\n(任意)","名前\n(任意)","性別\n(M:男,F:女)","生年月日\n(例:2010/5/1)","測定日\n(例:2013/10/3)","身長\n(cm)","体重\n(kg)","満年齢\n(歳)","年齢\n区分","標準体重\n(kg)","肥満度\n(%)","肥満度\n区分"]
[1,"山田太郎","M","2009-01-10","2013-05-07",102.5,16,{"$f":"nenrei(D17,E17)","v":4},{"$f":"nenreikubun(D17,E17)","v":"幼児"},{"$f":"IF(I17=\"幼児\",stdbw2000(C17,H17,F17),\"\")","v":16.218675000000005},{"$f":"himando(G17,J17)","v":-1.3482913986500412E-2},{"$f":"hikubun1j(K17)","v":"ふつう"}]
[2,"大阪次郎","M","2008-09-12","2013-09-01",103.3,19.2,{"$f":"nenrei(D18,E18)","v":4},{"$f":"nenreikubun(D18,E18)","v":"幼児"},{"$f":"IF(I18=\"幼児\",stdbw2000(C18,H18,F18),\"\")","v":16.464553400000003},{"$f":"himando(G18,J18)","v":0.16614156081512635},{"$f":"hikubun1j(K18)","v":"ふとりぎみ"}]
[3,"東京花子","F","2008-04-21","2013-04-24",110.0962523,17,{"$f":"nenrei(D19,E19)","v":5},{"$f":"nenreikubun(D19,E19)","v":"幼児"},{"$f":"IF(I19=\"幼児\",stdbw2000(C19,H19,F19),\"\")","v":18.761866401218086},{"$f":"himando(G19,J19)","v":-9.3906776838774381E-2},{"$f":"hikubun1j(K19)","v":"ふつう"}]
[4,"厚生昌子","F","2008-04-04","2013-05-16",112.140277,16.5,{"$f":"nenrei(D20,E20)","v":5},{"$f":"nenreikubun(D20,E20)","v":"幼児"},{"$f":"IF(I20=\"幼児\",stdbw2000(C20,H20,F20),\"\")","v":19.513186430235457},{"$f":"himando(G20,J20)","v":-0.15441795941469402},{"$f":"hikubun1j(K20)","v":"やせ"}]

{"sheet":"3～5歳男児","index":1,"n_rows":1019,"n_cols":12,"rows_kept":1019,"cut":false,"hidden":false,"merged":[[17,7,17,11],[17,0,17,6],[1,4,12,11],[1,0,1,2]]}
["肥満度判定区分の集計表",null,null,null,"メモ欄"]
["幼児"]
[null,"人数","割合"]
["総数",{"$f":"SUM(B5:B10)","v":0},{"$f":"+B4/B$4","v":{"$error":"#DIV/0!"}}]
["やせすぎ",{"$f":"COUNTIF(L$20:L$1019,A5)","v":0},{"$error":"#DIV/0!"}]
["やせ",0,{"$error":"#DIV/0!"}]
["ふつう",0,{"$error":"#DIV/0!"}]
["ふとりぎみ",0,{"$error":"#DIV/0!"}]
["ややふとりすぎ",0,{"$error":"#DIV/0!"}]
["ふとりすぎ",0,{"$error":"#DIV/0!"}]
["やせ（再掲）※1",{"$f":"+B5+B6","v":0},{"$error":"#DIV/0!"}]
["肥満（再掲）※2",{"$f":"+B8+B9+B10","v":0},{"$error":"#DIV/0!"}]
["やせ＋肥満",{"$f":"+B11+B12","v":0},{"$error":"#DIV/0!"}]
["※1 やせ：やせすぎ，やせの合計。"]
["※2 肥満：ふとりぎみ，ややふとりすぎ，ふとりすぎの合計。"]
[]
["肥満度判定区分の簡易計算シート（３歳以上６歳未満の幼児）"]
["入　力　欄",null,null,null,null,null,null,"自　動　計　算"]
["No.\n(任意)","名前\n(任意)","性別\n(M:男,F:女)","生年月日\n(例:2010/5/1)","測定日\n(例:2013/10/3)","身長\n(cm)","体重\n(kg)","満年齢\n(歳)","年齢\n区分","標準体重\n(kg)","肥満度\n(%)","肥満度\n区分"]
[null,null,"M",null,null,null,null,{"$f":"nenrei(D20,E20)","v":""},{"$f":"nenreikubun(D20,E20)","v":""},{"$f":"IF(I20=\"幼児\",stdbw2000(C20,H20,F20),\"\")","v":""},{"$f":"himando(G20,J20)","v":""},{"$f":"hikubun1j(K20)","v":""}]
[null,null,"M",null,null,null,null,"","","","",""]
[null,null,"M",null,null,null,null,"","","","",""]
[null,null,"M",null,null,null,null,"","","","",""]
[null,null,"M",null,null,null,null,"","","","",""]
[null,null,"M",null,null,null,null,"","","","",""]
[null,null,"M",null,null,null,null,"","","","",""]
[null,null,"M",null,null,null,null,"","","","",""]
[null,null,"M",null,null,null,null,"","","","",""]
[null,null,"M",null,null,null,null,"","","","",""]
[null,null,"M",null,null,null,null,"","","","",""]
[null,null,"M",null,null,null,null,"","","","",""]
[null,null,"M",null,null,null,null,"","","","",""]
[null,null,"M",null,null,null,null,"","","","",""]
[null,null,"M",null,null,null,null,"","","","",""]
[null,null,"M",null,null,null,null,"","","","",""]
[null,null,"M",null,null,null,null,"","","","",""]
[null,null,"M",null,null,null,null,"","","","",""]
[null,null,"M",null,null,null,null,"","","","",""]
[null,null,"M",null,null,null,null,"","","","",""]
[null,null,"M",null,null,null,null,"","","","",""]
[null,null,"M",null,null,null,null,"","","","",""]
[null,null,"M",null,null,null,null,"","","","",""]
[null,null,"M",null,null,null,null,"","","","",""]
[null,null,"M",null,null,null,null,"","","","",""]
[null,null,"M",null,null,null,null,"","","","",""]
[null,null,"M",null,null,null,null,"","","","",""]
[null,null,"M",null,null,null,null,"","","","",""]
[null,null,"M",null,null,null,null,"","","","",""]
[null,null,"M",null,null,null,null,"","","","",""]
[null,null,"M",null,null,null,null,"","","","",""]
[null,null,"M",null,null,null,null,"","","","",""]
[null,null,"M",null,null,null,null,"","","","",""]
[null,null,"M",null,null,null,null,"","","","",""]
[null,null,"M",null,null,null,null,"","","","",""]
[null,null,"M",null,null,null,null,"","","","",""]
[null,null,"M",null,null,null,null,"","","","",""]
[null,null,"M",null,null,null,null,"","","","",""]
[null,null,"M",null,null,null,null,"","","","",""]
[null,null,"M",null,null,null,null,"","","","",""]
[null,null,"M",null,null,null,null,"","","","",""]
[null,null,"M",null,null,null,null,"","","","",""]
[null,null,"M",null,null,null,null,"","","","",""]
[null,null,"M",null,null,null,null,"","","","",""]
[null,null,"M",null,null,null,null,"","","","",""]
[null,null,"M",null,null,null,null,"","","","",""]
[null,null,"M",null,null,null,null,"","","","",""]
[null,null,"M",null,null,null,null,"","","","",""]
[null,null,"M",null,null,null,null,"","","","",""]
[null,null,"M",null,null,null,null,"","","","",""]
[null,null,"M",null,null,null,null,"","","","",""]
[null,null,"M",null,null,null,null,"","","","",""]
[null,null,"M",null,null,null,null,"","","","",""]
[null,null,"M",null,null,null,null,"","","","",""]
[null,null,"M",null,null,null,null,"","","","",""]
[null,null,"M",null,null,null,null,"","","","",""]
[null,null,"M",null,null,null,null,"","","","",""]
[null,null,"M",null,null,null,null,"","","","",""]
[null,null,"M",null,null,null,null,"","","","",""]
[null,null,"M",null,null,null,null,"","","","",""]
[null,null,"M",null,null,null,null,"","","","",""]
[null,null,"M",null,null,null,null,"","","","",""]
[null,null,"M",null,null,null,null,"","","","",""]
[null,null,"M",null,null,null,null,"","","","",""]
[null,null,"M",null,null,null,null,{"$f":"nenrei(D84,E84)","v":""},{"$f":"nenreikubun(D84,E84)","v":""},{"$f":"IF(I84=\"幼児\",stdbw2000(C84,H84,F84),\"\")","v":""},{"$f":"himando(G84,J84)","v":""},{"$f":"hikubun1j(K84)","v":""}]
[null,null,"M",null,null,null,null,"","","","",""]
[null,null,"M",null,null,null,null,"","","","",""]
[null,null,"M",null,null,null,null,"","","","",""]
[null,null,"M",null,null,null,null,"","","","",""]
[null,null,"M",null,null,null,null,"","","","",""]
[null,null,"M",null,null,null,null,"","","","",""]
[null,null,"M",null,null,null,null,"","","","",""]
[null,null,"M",null,null,null,null,"","","","",""]
[null,null,"M",null,null,null,null,"","","","",""]
[null,null,"M",null,null,null,null,"","","","",""]
[null,null,"M",null,null,null,null,"","","","",""]
[null,null,"M",null,null,null,null,"","","","",""]
[null,null,"M",null,null,null,null,"","","","",""]
[null,null,"M",null,null,null,null,"","","","",""]
[null,null,"M",null,null,null,null,"","","","",""]
[null,null,"M",null,null,null,null,"","","","",""]
[null,null,"M",null,null,null,null,"","","","",""]
[null,null,"M",null,null,null,null,"","","","",""]
[null,null,"M",null,null,null,null,"","","","",""]
[null,null,"M",null,null,null,null,"","","","",""]
[null,null,"M",null,null,null,null,"","","","",""]
[null,null,"M",null,null,null,null,"","","","",""]
[null,null,"M",null,null,null,null,"","","","",""]
[null,null,"M",null,null,null,null,"","","","",""]
[null,null,"M",null,null,null,null,"","","","",""]
[null,null,"M",null,null,null,null,"","","","",""]
[null,null,null,null,null,null,null,"","","","",""]
[null,null,null,null,null,null,null,"","","","",""]
[null,null,null,null,null,null,null,"","","","",""]
[null,null,null,null,null,null,null,"","","","",""]
[null,null,null,null,null,null,null,"","","","",""]
[null,null,null,null,null,null,null,"","","","",""]
[null,null,null,null,null,null,null,"","","","",""]
[null,null,null,null,null,null,null,"","","","",""]
[null,null,null,null,null,null,null,"","","","",""]
[null,null,null,null,null,null,null,"","","","",""]
[null,null,null,null,null,null,null,"","","","",""]
[null,null,null,null,null,null,null,"","","","",""]
[null,null,null,null,null,null,null,"","","","",""]
[null,null,null,null,null,null,null,"","","","",""]
[null,null,null,null,null,null,null,"","","","",""]
[null,null,null,null,null,null,null,"","","","",""]
[null,null,null,null,null,null,null,"","","","",""]
[null,null,null,null,null,null,null,"","","","",""]
[null,null,null,null,null,null,null,"","","","",""]
[null,null,null,null,null,null,null,"","","","",""]
[null,null,null,null,null,null,null,"","","","",""]
[null,null,null,null,null,null,null,"","","","",""]
[null,null,null,null,null,null,null,"","","","",""]
[null,null,null,null,null,null,null,"","","","",""]
[null,null,null,null,null,null,null,"","","","",""]
[null,null,null,null,null,null,null,"","","","",""]
[null,null,null,null,null,null,null,"","","","",""]
[null,null,null,null,null,null,null,"","","","",""]
[null,null,null,null,null,null,null,"","","","",""]
[null,null,null,null,null,null,null,"","","","",""]
[null,null,null,null,null,null,null,"","","","",""]
[null,null,null,null,null,null,null,"","","","",""]
[null,null,null,null,null,null,null,"","","","",""]
[null,null,null,null,null,null,null,"","","","",""]
[null,null,null,null,null,null,null,"","","","",""]
[null,null,null,null,null,null,null,"","","","",""]
[null,null,null,null,null,null,null,"","","","",""]
[null,null,null,null,null,null,null,{"$f":"nenrei(D148,E148)","v":""},{"$f":"nenreikubun(D148,E148)","v":""},{"$f":"IF(I148=\"幼児\",stdbw2000(C148,H148,F148),\"\")","v":""},{"$f":"himando(G148,J148)","v":""},{"$f":"hikubun1j(K148)","v":""}]
[null,null,null,null,null,null,null,"","","","",""]
[null,null,null,null,null,null,null,"","","","",""]
[null,null,null,null,null,null,null,"","","","",""]
[null,null,null,null,null,null,null,"","","","",""]
[null,null,null,null,null,null,null,"","","","",""]
[null,null,null,null,null,null,null,"","","","",""]
[null,null,null,null,null,null,null,"","","","",""]
[null,null,null,null,null,null,null,"","","","",""]
[null,null,null,null,null,null,null,"","","","",""]
[null,null,null,null,null,null,null,"","","","",""]
[null,null,null,null,null,null,null,"","","","",""]
[null,null,null,null,null,null,null,"","","","",""]
[null,null,null,null,null,null,null,"","","","",""]
[null,null,null,null,null,null,null,"","","","",""]
[null,null,null,null,null,null,null,"","","","",""]
[null,null,null,null,null,null,null,"","","","",""]
[null,null,null,null,null,null,null,"","","","",""]
[null,null,null,null,null,null,null,"","","","",""]
[null,null,null,null,null,null,null,"","","","",""]
[null,null,null,null,null,null,null,"","","","",""]
[null,null,null,null,null,null,null,"","","","",""]
[null,null,null,null,null,null,null,"","","","",""]
[null,null,null,null,null,null,null,"","","","",""]
[null,null,null,null,null,null,null,"","","","",""]
[null,null,null,null,null,null,null,"","","","",""]
[null,null,null,null,null,null,null,"","","","",""]
[null,null,null,null,null,null,null,"","","","",""]
[null,null,null,null,null,null,null,"","","","",""]
[null,null,null,null,null,null,null,"","","","",""]
[null,null,null,null,null,null,null,"","","","",""]
[null,null,null,null,null,null,null,"","","","",""]
[null,null,null,null,null,null,null,"","","","",""]
[null,null,null,null,null,null,null,"","","","",""]
[null,null,null,null,null,null,null,"","","","",""]
[null,null,null,null,null,null,null,"","","","",""]
[null,null,null,null,null,null,null,"","","","",""]
[null,null,null,null,null,null,null,"","","","",""]
[null,null,null,null,null,null,null,"","","","",""]
[null,null,null,null,null,null,null,"","","","",""]
[null,null,null,null,null,null,null,"","","","",""]
[null,null,null,null,null,null,null,"","","","",""]
[null,null,null,null,null,null,null,"","","","",""]
[null,null,null,null,null,null,null,"","","","",""]
[null,null,null,null,null,null,null,"","","","",""]
[null,null,null,null,null,null,null,"","","","",""]
[null,null,null,null,null,null,null,"","","","",""]
[null,null,null,null,null,null,null,"","","","",""]
[null,null,null,null,null,null,null,"","","","",""]
[null,null,null,null,null,null,null,"","","","",""]
[null,null,null,null,null,null,null,"","","","",""]
[null,null,null,null,null,null,null,"","","","",""]
[null,null,null,null,null,null,null,"","","","",""]
[null,null,null,null,null,null,null,"","","","",""]
[null,null,null,null,null,null,null,"","","","",""]
[null,null,null,null,null,null,null,"","","","",""]
[null,null,null,null,null,null,null,"","","","",""]
[null,null,null,null,null,null,null,"","","","",""]
[null,null,null,null,null,null,null,"","","","",""]
[null,null,null,null,null,null,null,"","","","",""]
[null,null,null,null,null,null,null,"","","","",""]
[null,null,null,null,null,null,null,"","","","",""]
[null,null,null,null,null,null,null,"","","","",""]
[null,null,null,null,null,null,null,"","","","",""]
[null,null,null,null,null,null,null,{"$f":"nenrei(D212,E212)","v":""},{"$f":"nenreikubun(D212,E212)","v":""},{"$f":"IF(I212=\"幼児\",stdbw2000(C212,H212,F212),\"\")","v":""},{"$f":"himando(G212,J212)","v":""},{"$f":"hikubun1j(K212)","v":""}]
[null,null,null,null,null,null,null,"","","","",""]
[null,null,null,null,null,null,null,"","","","",""]
[null,null,null,null,null,null,null,"","","","",""]
[null,null,null,null,null,null,null,"","","","",""]
[null,null,null,null,null,null,null,"","","","",""]
[null,null,null,null,null,null,null,"","","","",""]
[null,null,null,null,null,null,null,"","","","",""]
[null,null,null,null,null,null,null,"","","","",""]
[null,null,null,null,null,null,null,"","","","",""]
[null,null,null,null,null,null,null,"","","","",""]
[null,null,null,null,null,null,null,"","","","",""]
[null,null,null,null,null,null,null,"","","","",""]
[null,null,null,null,null,null,null,"","","","",""]
[null,null,null,null,null,null,null,"","","","",""]
[null,null,null,null,null,null,null,"","","","",""]
[null,null,null,null,null,null,null,"","","","",""]
[null,null,null,null,null,null,null,"","","","",""]
[null,null,null,null,null,null,null,"","","","",""]
[null,null,null,null,null,null,null,"","","","",""]
[null,null,null,null,null,null,null,"","","","",""]
[null,null,null,null,null,null,null,"","","","",""]
[null,null,null,null,null,null,null,"","","","",""]
[null,null,null,null,null,null,null,"","","","",""]
[null,null,null,null,null,null,null,"","","","",""]
[null,null,null,null,null,null,null,"","","","",""]
[null,null,null,null,null,null,null,"","","","",""]
[null,null,null,null,null,null,null,"","","","",""]
[null,null,null,null,null,null,null,"","","","",""]
[null,null,null,null,null,null,null,"","","","",""]
[null,null,null,null,null,null,null,"","","","",""]
[null,null,null,null,null,null,null,"","","","",""]
[null,null,null,null,null,null,null,"","","","",""]
[null,null,null,null,null,null,null,"","","","",""]
[null,null,null,null,null,null,null,"","","","",""]
[null,null,null,null,null,null,null,"","","","",""]
[null,null,null,null,null,null,null,"","","","",""]
[null,null,null,null,null,null,null,"","","","",""]
[null,null,null,null,null,null,null,"","","","",""]
[null,null,null,null,null,null,null,"","","","",""]
[null,null,null,null,null,null,null,"","","","",""]
[null,null,null,null,null,null,null,"","","","",""]
[null,null,null,null,null,null,null,"","","","",""]
[null,null,null,null,null,null,null,"","","","",""]
[null,null,null,null,null,null,null,"","","","",""]
[null,null,null,null,null,null,null,"","","","",""]
[null,null,null,null,null,null,null,"","","","",""]
[null,null,null,null,null,null,null,"","","","",""]
[null,null,null,null,null,null,null,"","","","",""]
[null,null,null,null,null,null,null,"","","","",""]
[null,null,null,null,null,null,null,"","","","",""]
[null,null,null,null,null,null,null,"","","","",""]
[null,null,null,null,null,null,null,"","","","",""]
[null,null,null,null,null,null,null,"","","","",""]
[null,null,null,null,null,null,null,"","","","",""]
[null,null,null,null,null,null,null,"","","","",""]
[null,null,null,null,null,null,null,"","","","",""]
[null,null,null,null,null,null,null,"","","","",""]
[null,null,null,null,null,null,null,"","","","",""]
[null,null,null,null,null,null,null,"","","","",""]
[null,null,null,null,null,null,null,"","","","",""]
[null,null,null,null,null,null,null,"","","","",""]
[null,null,null,null,null,null,null,"","","","",""]
[null,null,null,null,null,null,null,"","","","",""]
[null,null,null,null,null,null,null,{"$f":"nenrei(D276,E276)","v":""},{"$f":"nenreikubun(D276,E276)","v":""},{"$f":"IF(I276=\"幼児\",stdbw2000(C276,H276,F276),\"\")","v":""},{"$f":"himando(G276,J276)","v":""},{"$f":"hikubun1j(K276)","v":""}]
[null,null,null,null,null,null,null,"","","","",""]
[null,null,null,null,null,null,null,"","","","",""]
[null,null,null,null,null,null,null,"","","","",""]
[null,null,null,null,null,null,null,"","","","",""]
[null,null,null,null,null,null,null,"","","","",""]
[null,null,null,null,null,null,null,"","","","",""]
[null,null,null,null,null,null,null,"","","","",""]
[null,null,null,null,null,null,null,"","","","",""]
[null,null,null,null,null,null,null,"","","","",""]
[null,null,null,null,null,null,null,"","","","",""]
[null,null,null,null,null,null,null,"","","","",""]
[null,null,null,null,null,null,null,"","","","",""]
[null,null,null,null,null,null,null,"","","","",""]
[null,null,null,null,null,null,null,"","","","",""]
[null,null,null,null,null,null,null,"","","","",""]
[null,null,null,null,null,null,null,"","","","",""]
[null,null,null,null,null,null,null,"","","","",""]
[null,null,null,null,null,null,null,"","","","",""]
[null,null,null,null,null,null,null,"","","","",""]
[null,null,null,null,null,null,null,"","","","",""]
[null,null,null,null,null,null,null,"","","","",""]
[null,null,null,null,null,null,null,"","","","",""]
[null,null,null,null,null,null,null,"","","","",""]
[null,null,null,null,null,null,null,"","","","",""]
[null,null,null,null,null,null,null,"","","","",""]
[null,null,null,null,null,null,null,"","","","",""]
[null,null,null,null,null,null,null,"","","","",""]
[null,null,null,null,null,null,null,"","","","",""]
[null,null,null,null,null,null,null,"","","","",""]
[null,null,null,null,null,null,null,"","","","",""]
[null,null,null,null,null,null,null,"","","","",""]
[null,null,null,null,null,null,null,"","","","",""]
[null,null,null,null,null,null,null,"","","","",""]
[null,null,null,null,null,null,null,"","","","",""]
[null,null,null,null,null,null,null,"","","","",""]
[null,null,null,null,null,null,null,"","","","",""]
[null,null,null,null,null,null,null,"","","","",""]
[null,null,null,null,null,null,null,"","","","",""]
[null,null,null,null,null,null,null,"","","","",""]
[null,null,null,null,null,null,null,"","","","",""]
[null,null,null,null,null,null,null,"","","","",""]
[null,null,null,null,null,null,null,"","","","",""]
[null,null,null,null,null,null,null,"","","","",""]
[null,null,null,null,null,null,null,"","","","",""]
[null,null,null,null,null,null,null,"","","","",""]
[null,null,null,null,null,null,null,"","","","",""]
[null,null,null,null,null,null,null,"","","","",""]
[null,null,null,null,null,null,null,"","","","",""]
[null,null,null,null,null,null,null,"","","","",""]
[null,null,null,null,null,null,null,"","","","",""]
[null,null,null,null,null,null,null,"","","","",""]
[null,null,null,null,null,null,null,"","","","",""]
[null,null,null,null,null,null,null,"","","","",""]
[null,null,null,null,null,null,null,"","","","",""]
[null,null,null,null,null,null,null,"","","","",""]
[null,null,null,null,null,null,null,"","","","",""]
[null,null,null,null,null,null,null,"","","","",""]
[null,null,null,null,null,null,null,"","","","",""]
[null,null,null,null,null,null,null,"","","","",""]
[null,null,null,null,null,null,null,"","","","",""]
[null,null,null,null,null,null,null,"","","","",""]
[null,null,null,null,null,null,null,"","","","",""]
[null,null,null,null,null,null,null,"","","","",""]
[null,null,null,null,null,null,null,{"$f":"nenrei(D340,E340)","v":""},{"$f":"nenreikubun(D340,E340)","v":""},{"$f":"IF(I340=\"幼児\",stdbw2000(C340,H340,F340),\"\")","v":""},{"$f":"himando(G340,J340)","v":""},{"$f":"hikubun1j(K340)","v":""}]
[null,null,null,null,null,null,null,"","","","",""]
[null,null,null,null,null,null,null,"","","","",""]
[null,null,null,null,null,null,null,"","","","",""]
[null,null,null,null,null,null,null,"","","","",""]
[null,null,null,null,null,null,null,"","","","",""]
[null,null,null,null,null,null,null,"","","","",""]
[null,null,null,null,null,null,null,"","","","",""]
[null,null,null,null,null,null,null,"","","","",""]
[null,null,null,null,null,null,null,"","","","",""]
[null,null,null,null,null,null,null,"","","","",""]
[null,null,null,null,null,null,null,"","","","",""]
[null,null,null,null,null,null,null,"","","","",""]
[null,null,null,null,null,null,null,"","","","",""]
[null,null,null,null,null,null,null,"","","","",""]
[null,null,null,null,null,null,null,"","","","",""]
[null,null,null,null,null,null,null,"","","","",""]
[null,null,null,null,null,null,null,"","","","",""]
[null,null,null,null,null,null,null,"","","","",""]
[null,null,null,null,null,null,null,"","","","",""]
[null,null,null,null,null,null,null,"","","","",""]
[null,null,null,null,null,null,null,"","","","",""]
[null,null,null,null,null,null,null,"","","","",""]
[null,null,null,null,null,null,null,"","","","",""]
[null,null,null,null,null,null,null,"","","","",""]
[null,null,null,null,null,null,null,"","","","",""]
[null,null,null,null,null,null,null,"","","","",""]
[null,null,null,null,null,null,null,"","","","",""]
[null,null,null,null,null,null,null,"","","","",""]
[null,null,null,null,null,null,null,"","","","",""]
[null,null,null,null,null,null,null,"","","","",""]
[null,null,null,null,null,null,null,"","","","",""]
[null,null,null,null,null,null,null,"","","","",""]
[null,null,null,null,null,null,null,"","","","",""]
[null,null,null,null,null,null,null,"","","","",""]
[null,null,null,null,null,null,null,"","","","",""]
[null,null,null,null,null,null,null,"","","","",""]
[null,null,null,null,null,null,null,"","","","",""]
[null,null,null,null,null,null,null,"","","","",""]
[null,null,null,null,null,null,null,"","","","",""]
[null,null,null,null,null,null,null,"","","","",""]
[null,null,null,null,null,null,null,"","","","",""]
[null,null,null,null,null,null,null,"","","","",""]
[null,null,null,null,null,null,null,"","","","",""]
[null,null,null,null,null,null,null,"","","","",""]
[null,null,null,null,null,null,null,"","","","",""]
[null,null,null,null,null,null,null,"","","","",""]
[null,null,null,null,null,null,null,"","","","",""]
[null,null,null,null,null,null,null,"","","","",""]
[null,null,null,null,null,null,null,"","","","",""]
[null,null,null,null,null,null,null,"","","","",""]
[null,null,null,null,null,null,null,"","","","",""]
[null,null,null,null,null,null,null,"","","","",""]
[null,null,null,null,null,null,null,"","","","",""]
[null,null,null,null,null,null,null,"","","","",""]
[null,null,null,null,null,null,null,"","","","",""]
[null,null,null,null,null,null,null,"","","","",""]
[null,null,null,null,null,null,null,"","","","",""]
[null,null,null,null,null,null,null,"","","","",""]
[null,null,null,null,null,null,null,"","","","",""]
[null,null,null,null,null,null,null,"","","","",""]
[null,null,null,null,null,null,null,"","","","",""]
[null,null,null,null,null,null,null,"","","","",""]
[null,null,null,null,null,null,null,"","","","",""]
[null,null,null,null,null,null,null,{"$f":"nenrei(D404,E404)","v":""},{"$f":"nenreikubun(D404,E404)","v":""},{"$f":"IF(I404=\"幼児\",stdbw2000(C404,H404,F404),\"\")","v":""},{"$f":"himando(G404,J404)","v":""},{"$f":"hikubun1j(K404)","v":""}]
[null,null,null,null,null,null,null,"","","","",""]
[null,null,null,null,null,null,null,"","","","",""]
[null,null,null,null,null,null,null,"","","","",""]
[null,null,null,null,null,null,null,"","","","",""]
[null,null,null,null,null,null,null,"","","","",""]
[null,null,null,null,null,null,null,"","","","",""]
[null,null,null,null,null,null,null,"","","","",""]
[null,null,null,null,null,null,null,"","","","",""]
[null,null,null,null,null,null,null,"","","","",""]
[null,null,null,null,null,null,null,"","","","",""]
[null,null,null,null,null,null,null,"","","","",""]
[null,null,null,null,null,null,null,"","","","",""]
[null,null,null,null,null,null,null,"","","","",""]
[null,null,null,null,null,null,null,"","","","",""]
[null,null,null,null,null,null,null,"","","","",""]
[null,null,null,null,null,null,null,"","","","",""]
[null,null,null,null,null,null,null,"","","","",""]
[null,null,null,null,null,null,null,"","","","",""]
[null,null,null,null,null,null,null,"","","","",""]
[null,null,null,null,null,null,null,"","","","",""]
[null,null,null,null,null,null,null,"","","","",""]
[null,null,null,null,null,null,null,"","","","",""]
[null,null,null,null,null,null,null,"","","","",""]
[null,null,null,null,null,null,null,"","","","",""]
[null,null,null,null,null,null,null,"","","","",""]
[null,null,null,null,null,null,null,"","","","",""]
[null,null,null,null,null,null,null,"","","","",""]
[null,null,null,null,null,null,null,"","","","",""]
[null,null,null,null,null,null,null,"","","","",""]
[null,null,null,null,null,null,null,"","","","",""]
[null,null,null,null,null,null,null,"","","","",""]
[null,null,null,null,null,null,null,"","","","",""]
[null,null,null,null,null,null,null,"","","","",""]
[null,null,null,null,null,null,null,"","","","",""]
[null,null,null,null,null,null,null,"","","","",""]
[null,null,null,null,null,null,null,"","","","",""]
[null,null,null,null,null,null,null,"","","","",""]
[null,null,null,null,null,null,null,"","","","",""]
[null,null,null,null,null,null,null,"","","","",""]
[null,null,null,null,null,null,null,"","","","",""]
[null,null,null,null,null,null,null,"","","","",""]
[null,null,null,null,null,null,null,"","","","",""]
[null,null,null,null,null,null,null,"","","","",""]
[null,null,null,null,null,null,null,"","","","",""]
[null,null,null,null,null,null,null,"","","","",""]
[null,null,null,null,null,null,null,"","","","",""]
[null,null,null,null,null,null,null,"","","","",""]
[null,null,null,null,null,null,null,"","","","",""]
[null,null,null,null,null,null,null,"","","","",""]
[null,null,null,null,null,null,null,"","","","",""]
[null,null,null,null,null,null,null,"","","","",""]
[null,null,null,null,null,null,null,"","","","",""]
[null,null,null,null,null,null,null,"","","","",""]
[null,null,null,null,null,null,null,"","","","",""]
[null,null,null,null,null,null,null,"","","","",""]
[null,null,null,null,null,null,null,"","","","",""]
[null,null,null,null,null,null,null,"","","","",""]
[null,null,null,null,null,null,null,"","","","",""]
[null,null,null,null,null,null,null,"","","","",""]
[null,null,null,null,null,null,null,"","","","",""]
[null,null,null,null,null,null,null,"","","","",""]
[null,null,null,null,null,null,null,"","","","",""]
[null,null,null,null,null,null,null,"","","","",""]
[null,null,null,null,null,null,null,{"$f":"nenrei(D468,E468)","v":""},{"$f":"nenreikubun(D468,E468)","v":""},{"$f":"IF(I468=\"幼児\",stdbw2000(C468,H468,F468),\"\")","v":""},{"$f":"himando(G468,J468)","v":""},{"$f":"hikubun1j(K468)","v":""}]
[null,null,null,null,null,null,null,"","","","",""]
[null,null,null,null,null,null,null,"","","","",""]
[null,null,null,null,null,null,null,"","","","",""]
[null,null,null,null,null,null,null,"","","","",""]
[null,null,null,null,null,null,null,"","","","",""]
[null,null,null,null,null,null,null,"","","","",""]
[null,null,null,null,null,null,null,"","","","",""]
[null,null,null,null,null,null,null,"","","","",""]
[null,null,null,null,null,null,null,"","","","",""]
[null,null,null,null,null,null,null,"","","","",""]
[null,null,null,null,null,null,null,"","","","",""]
[null,null,null,null,null,null,null,"","","","",""]
[null,null,null,null,null,null,null,"","","","",""]
[null,null,null,null,null,null,null,"","","","",""]
[null,null,null,null,null,null,null,"","","","",""]
[null,null,null,null,null,null,null,"","","","",""]
[null,null,null,null,null,null,null,"","","","",""]
[null,null,null,null,null,null,null,"","","","",""]
[null,null,null,null,null,null,null,"","","","",""]
[null,null,null,null,null,null,null,"","","","",""]
[null,null,null,null,null,null,null,"","","","",""]
[null,null,null,null,null,null,null,"","","","",""]
[null,null,null,null,null,null,null,"","","","",""]
[null,null,null,null,null,null,null,"","","","",""]
[null,null,null,null,null,null,null,"","","","",""]
[null,null,null,null,null,null,null,"","","","",""]
[null,null,null,null,null,null,null,"","","","",""]
[null,null,null,null,null,null,null,"","","","",""]
[null,null,null,null,null,null,null,"","","","",""]
[null,null,null,null,null,null,null,"","","","",""]
[null,null,null,null,null,null,null,"","","","",""]
[null,null,null,null,null,null,null,"","","","",""]
[null,null,null,null,null,null,null,"","","","",""]
[null,null,null,null,null,null,null,"","","","",""]
[null,null,null,null,null,null,null,"","","","",""]
[null,null,null,null,null,null,null,"","","","",""]
[null,null,null,null,null,null,null,"","","","",""]
[null,null,null,null,null,null,null,"","","","",""]
[null,null,null,null,null,null,null,"","","","",""]
[null,null,null,null,null,null,null,"","","","",""]
[null,null,null,null,null,null,null,"","","","",""]
[null,null,null,null,null,null,null,"","","","",""]
[null,null,null,null,null,null,null,"","","","",""]
[null,null,null,null,null,null,null,"","","","",""]
[null,null,null,null,null,null,null,"","","","",""]
[null,null,null,null,null,null,null,"","","","",""]
[null,null,null,null,null,null,null,"","","","",""]
[null,null,null,null,null,null,null,"","","","",""]
[null,null,null,null,null,null,null,"","","","",""]
[null,null,null,null,null,null,null,"","","","",""]
[null,null,null,null,null,null,null,"","","","",""]
[null,null,null,null,null,null,null,"","","","",""]
[null,null,null,null,null,null,null,"","","","",""]
[null,null,null,null,null,null,null,"","","","",""]
[null,null,null,null,null,null,null,"","","","",""]
[null,null,null,null,null,null,null,"","","","",""]
[null,null,null,null,null,null,null,"","","","",""]
[null,null,null,null,null,null,null,"","","","",""]
[null,null,null,null,null,null,null,"","","","",""]
[null,null,null,null,null,null,null,"","","","",""]
[null,null,null,null,null,null,null,"","","","",""]
[null,null,null,null,null,null,null,"","","","",""]
[null,null,null,null,null,null,null,"","","","",""]
[null,null,null,null,null,null,null,{"$f":"nenrei(D532,E532)","v":""},{"$f":"nenreikubun(D532,E532)","v":""},{"$f":"IF(I532=\"幼児\",stdbw2000(C532,H532,F532),\"\")","v":""},{"$f":"himando(G532,J532)","v":""},{"$f":"hikubun1j(K532)","v":""}]
[null,null,null,null,null,null,null,"","","","",""]
[null,null,null,null,null,null,null,"","","","",""]
[null,null,null,null,null,null,null,"","","","",""]
[null,null,null,null,null,null,null,"","","","",""]
[null,null,null,null,null,null,null,"","","","",""]
[null,null,null,null,null,null,null,"","","","",""]
[null,null,null,null,null,null,null,"","","","",""]
[null,null,null,null,null,null,null,"","","","",""]
[null,null,null,null,null,null,null,"","","","",""]
[null,null,null,null,null,null,null,"","","","",""]
[null,null,null,null,null,null,null,"","","","",""]
[null,null,null,null,null,null,null,"","","","",""]
[null,null,null,null,null,null,null,"","","","",""]
[null,null,null,null,null,null,null,"","","","",""]
[null,null,null,null,null,null,null,"","","","",""]
[null,null,null,null,null,null,null,"","","","",""]
[null,null,null,null,null,null,null,"","","","",""]
[null,null,null,null,null,null,null,"","","","",""]
[null,null,null,null,null,null,null,"","","","",""]
[null,null,null,null,null,null,null,"","","","",""]
[null,null,null,null,null,null,null,"","","","",""]
[null,null,null,null,null,null,null,"","","","",""]
[null,null,null,null,null,null,null,"","","","",""]
[null,null,null,null,null,null,null,"","","","",""]
[null,null,null,null,null,null,null,"","","","",""]
[null,null,null,null,null,null,null,"","","","",""]
[null,null,null,null,null,null,null,"","","","",""]
[null,null,null,null,null,null,null,"","","","",""]
[null,null,null,null,null,null,null,"","","","",""]
[null,null,null,null,null,null,null,"","","","",""]
[null,null,null,null,null,null,null,"","","","",""]
[null,null,null,null,null,null,null,"","","","",""]
[null,null,null,null,null,null,null,"","","","",""]
[null,null,null,null,null,null,null,"","","","",""]
[null,null,null,null,null,null,null,"","","","",""]
[null,null,null,null,null,null,null,"","","","",""]
[null,null,null,null,null,null,null,"","","","",""]
[null,null,null,null,null,null,null,"","","","",""]
[null,null,null,null,null,null,null,"","","","",""]
[null,null,null,null,null,null,null,"","","","",""]
[null,null,null,null,null,null,null,"","","","",""]
[null,null,null,null,null,null,null,"","","","",""]
[null,null,null,null,null,null,null,"","","","",""]
[null,null,null,null,null,null,null,"","","","",""]
[null,null,null,null,null,null,null,"","","","",""]
[null,null,null,null,null,null,null,"","","","",""]
[null,null,null,null,null,null,null,"","","","",""]
[null,null,null,null,null,null,null,"","","","",""]
[null,null,null,null,null,null,null,"","","","",""]
[null,null,null,null,null,null,null,"","","","",""]
[null,null,null,null,null,null,null,"","","","",""]
[null,null,null,null,null,null,null,"","","","",""]
[null,null,null,null,null,null,null,"","","","",""]
[null,null,null,null,null,null,null,"","","","",""]
[null,null,null,null,null,null,null,"","","","",""]
[null,null,null,null,null,null,null,"","","","",""]
[null,null,null,null,null,null,null,"","","","",""]
[null,null,null,null,null,null,null,"","","","",""]
[null,null,null,null,null,null,null,"","","","",""]
[null,null,null,null,null,null,null,"","","","",""]
[null,null,null,null,null,null,null,"","","","",""]
[null,null,null,null,null,null,null,"","","","",""]
[null,null,null,null,null,null,null,"","","","",""]
[null,null,null,null,null,null,null,{"$f":"nenrei(D596,E596)","v":""},{"$f":"nenreikubun(D596,E596)","v":""},{"$f":"IF(I596=\"幼児\",stdbw2000(C596,H596,F596),\"\")","v":""},{"$f":"himando(G596,J596)","v":""},{"$f":"hikubun1j(K596)","v":""}]
[null,null,null,null,null,null,null,"","","","",""]
[null,null,null,null,null,null,null,"","","","",""]
[null,null,null,null,null,null,null,"","","","",""]
[null,null,null,null,null,null,null,"","","","",""]
[null,null,null,null,null,null,null,"","","","",""]
[null,null,null,null,null,null,null,"","","","",""]
[null,null,null,null,null,null,null,"","","","",""]
[null,null,null,null,null,null,null,"","","","",""]
[null,null,null,null,null,null,null,"","","","",""]
[null,null,null,null,null,null,null,"","","","",""]
[null,null,null,null,null,null,null,"","","","",""]
[null,null,null,null,null,null,null,"","","","",""]
[null,null,null,null,null,null,null,"","","","",""]
[null,null,null,null,null,null,null,"","","","",""]
[null,null,null,null,null,null,null,"","","","",""]
[null,null,null,null,null,null,null,"","","","",""]
[null,null,null,null,null,null,null,"","","","",""]
[null,null,null,null,null,null,null,"","","","",""]
[null,null,null,null,null,null,null,"","","","",""]
[null,null,null,null,null,null,null,"","","","",""]
[null,null,null,null,null,null,null,"","","","",""]
[null,null,null,null,null,null,null,"","","","",""]
[null,null,null,null,null,null,null,"","","","",""]
[null,null,null,null,null,null,null,"","","","",""]
[null,null,null,null,null,null,null,"","","","",""]
[null,null,null,null,null,null,null,"","","","",""]
[null,null,null,null,null,null,null,"","","","",""]
[null,null,null,null,null,null,null,"","","","",""]
[null,null,null,null,null,null,null,"","","","",""]
[null,null,null,null,null,null,null,"","","","",""]
[null,null,null,null,null,null,null,"","","","",""]
[null,null,null,null,null,null,null,"","","","",""]
[null,null,null,null,null,null,null,"","","","",""]
[null,null,null,null,null,null,null,"","","","",""]
[null,null,null,null,null,null,null,"","","","",""]
[null,null,null,null,null,null,null,"","","","",""]
[null,null,null,null,null,null,null,"","","","",""]
[null,null,null,null,null,null,null,"","","","",""]
[null,null,null,null,null,null,null,"","","","",""]
[null,null,null,null,null,null,null,"","","","",""]
[null,null,null,null,null,null,null,"","","","",""]
[null,null,null,null,null,null,null,"","","","",""]
[null,null,null,null,null,null,null,"","","","",""]
[null,null,null,null,null,null,null,"","","","",""]
[null,null,null,null,null,null,null,"","","","",""]
[null,null,null,null,null,null,null,"","","","",""]
[null,null,null,null,null,null,null,"","","","",""]
[null,null,null,null,null,null,null,"","","","",""]
[null,null,null,null,null,null,null,"","","","",""]
[null,null,null,null,null,null,null,"","","","",""]
[null,null,null,null,null,null,null,"","","","",""]
[null,null,null,null,null,null,null,"","","","",""]
[null,null,null,null,null,null,null,"","","","",""]
[null,null,null,null,null,null,null,"","","","",""]
[null,null,null,null,null,null,null,"","","","",""]
[null,null,null,null,null,null,null,"","","","",""]
[null,null,null,null,null,null,null,"","","","",""]
[null,null,null,null,null,null,null,"","","","",""]
[null,null,null,null,null,null,null,"","","","",""]
[null,null,null,null,null,null,null,"","","","",""]
[null,null,null,null,null,null,null,"","","","",""]
[null,null,null,null,null,null,null,"","","","",""]
[null,null,null,null,null,null,null,"","","","",""]
[null,null,null,null,null,null,null,{"$f":"nenrei(D660,E660)","v":""},{"$f":"nenreikubun(D660,E660)","v":""},{"$f":"IF(I660=\"幼児\",stdbw2000(C660,H660,F660),\"\")","v":""},{"$f":"himando(G660,J660)","v":""},{"$f":"hikubun1j(K660)","v":""}]
[null,null,null,null,null,null,null,"","","","",""]
[null,null,null,null,null,null,null,"","","","",""]
[null,null,null,null,null,null,null,"","","","",""]
[null,null,null,null,null,null,null,"","","","",""]
[null,null,null,null,null,null,null,"","","","",""]
[null,null,null,null,null,null,null,"","","","",""]
[null,null,null,null,null,null,null,"","","","",""]
[null,null,null,null,null,null,null,"","","","",""]
[null,null,null,null,null,null,null,"","","","",""]
[null,null,null,null,null,null,null,"","","","",""]
[null,null,null,null,null,null,null,"","","","",""]
[null,null,null,null,null,null,null,"","","","",""]
[null,null,null,null,null,null,null,"","","","",""]
[null,null,null,null,null,null,null,"","","","",""]
[null,null,null,null,null,null,null,"","","","",""]
[null,null,null,null,null,null,null,"","","","",""]
[null,null,null,null,null,null,null,"","","","",""]
[null,null,null,null,null,null,null,"","","","",""]
[null,null,null,null,null,null,null,"","","","",""]
[null,null,null,null,null,null,null,"","","","",""]
[null,null,null,null,null,null,null,"","","","",""]
[null,null,null,null,null,null,null,"","","","",""]
[null,null,null,null,null,null,null,"","","","",""]
[null,null,null,null,null,null,null,"","","","",""]
[null,null,null,null,null,null,null,"","","","",""]
[null,null,null,null,null,null,null,"","","","",""]
[null,null,null,null,null,null,null,"","","","",""]
[null,null,null,null,null,null,null,"","","","",""]
[null,null,null,null,null,null,null,"","","","",""]
[null,null,null,null,null,null,null,"","","","",""]
[null,null,null,null,null,null,null,"","","","",""]
[null,null,null,null,null,null,null,"","","","",""]
[null,null,null,null,null,null,null,"","","","",""]
[null,null,null,null,null,null,null,"","","","",""]
[null,null,null,null,null,null,null,"","","","",""]
[null,null,null,null,null,null,null,"","","","",""]
[null,null,null,null,null,null,null,"","","","",""]
[null,null,null,null,null,null,null,"","","","",""]
[null,null,null,null,null,null,null,"","","","",""]
[null,null,null,null,null,null,null,"","","","",""]
[null,null,null,null,null,null,null,"","","","",""]
[null,null,null,null,null,null,null,"","","","",""]
[null,null,null,null,null,null,null,"","","","",""]
[null,null,null,null,null,null,null,"","","","",""]
[null,null,null,null,null,null,null,"","","","",""]
[null,null,null,null,null,null,null,"","","","",""]
[null,null,null,null,null,null,null,"","","","",""]
[null,null,null,null,null,null,null,"","","","",""]
[null,null,null,null,null,null,null,"","","","",""]
[null,null,null,null,null,null,null,"","","","",""]
[null,null,null,null,null,null,null,"","","","",""]
[null,null,null,null,null,null,null,"","","","",""]
[null,null,null,null,null,null,null,"","","","",""]
[null,null,null,null,null,null,null,"","","","",""]
[null,null,null,null,null,null,null,"","","","",""]
[null,null,null,null,null,null,null,"","","","",""]
[null,null,null,null,null,null,null,"","","","",""]
[null,null,null,null,null,null,null,"","","","",""]
[null,null,null,null,null,null,null,"","","","",""]
[null,null,null,null,null,null,null,"","","","",""]
[null,null,null,null,null,null,null,"","","","",""]
[null,null,null,null,null,null,null,"","","","",""]
[null,null,null,null,null,null,null,"","","","",""]
[null,null,null,null,null,null,null,{"$f":"nenrei(D724,E724)","v":""},{"$f":"nenreikubun(D724,E724)","v":""},{"$f":"IF(I724=\"幼児\",stdbw2000(C724,H724,F724),\"\")","v":""},{"$f":"himando(G724,J724)","v":""},{"$f":"hikubun1j(K724)","v":""}]
[null,null,null,null,null,null,null,"","","","",""]
[null,null,null,null,null,null,null,"","","","",""]
[null,null,null,null,null,null,null,"","","","",""]
[null,null,null,null,null,null,null,"","","","",""]
[null,null,null,null,null,null,null,"","","","",""]
[null,null,null,null,null,null,null,"","","","",""]
[null,null,null,null,null,null,null,"","","","",""]
[null,null,null,null,null,null,null,"","","","",""]
[null,null,null,null,null,null,null,"","","","",""]
[null,null,null,null,null,null,null,"","","","",""]
[null,null,null,null,null,null,null,"","","","",""]
[null,null,null,null,null,null,null,"","","","",""]
[null,null,null,null,null,null,null,"","","","",""]
[null,null,null,null,null,null,null,"","","","",""]
[null,null,null,null,null,null,null,"","","","",""]
[null,null,null,null,null,null,null,"","","","",""]
[null,null,null,null,null,null,null,"","","","",""]
[null,null,null,null,null,null,null,"","","","",""]
[null,null,null,null,null,null,null,"","","","",""]
[null,null,null,null,null,null,null,"","","","",""]
[null,null,null,null,null,null,null,"","","","",""]
[null,null,null,null,null,null,null,"","","","",""]
[null,null,null,null,null,null,null,"","","","",""]
[null,null,null,null,null,null,null,"","","","",""]
[null,null,null,null,null,null,null,"","","","",""]
[null,null,null,null,null,null,null,"","","","",""]
[null,null,null,null,null,null,null,"","","","",""]
[null,null,null,null,null,null,null,"","","","",""]
[null,null,null,null,null,null,null,"","","","",""]
[null,null,null,null,null,null,null,"","","","",""]
[null,null,null,null,null,null,null,"","","","",""]
[null,null,null,null,null,null,null,"","","","",""]
[null,null,null,null,null,null,null,"","","","",""]
[null,null,null,null,null,null,null,"","","","",""]
[null,null,null,null,null,null,null,"","","","",""]
[null,null,null,null,null,null,null,"","","","",""]
[null,null,null,null,null,null,null,"","","","",""]
[null,null,null,null,null,null,null,"","","","",""]
[null,null,null,null,null,null,null,"","","","",""]
[null,null,null,null,null,null,null,"","","","",""]
[null,null,null,null,null,null,null,"","","","",""]
[null,null,null,null,null,null,null,"","","","",""]
[null,null,null,null,null,null,null,"","","","",""]
[null,null,null,null,null,null,null,"","","","",""]
[null,null,null,null,null,null,null,"","","","",""]
[null,null,null,null,null,null,null,"","","","",""]
[null,null,null,null,null,null,null,"","","","",""]
[null,null,null,null,null,null,null,"","","","",""]
[null,null,null,null,null,null,null,"","","","",""]
[null,null,null,null,null,null,null,"","","","",""]
[null,null,null,null,null,null,null,"","","","",""]
[null,null,null,null,null,null,null,"","","","",""]
[null,null,null,null,null,null,null,"","","","",""]
[null,null,null,null,null,null,null,"","","","",""]
[null,null,null,null,null,null,null,"","","","",""]
[null,null,null,null,null,null,null,"","","","",""]
[null,null,null,null,null,null,null,"","","","",""]
[null,null,null,null,null,null,null,"","","","",""]
[null,null,null,null,null,null,null,"","","","",""]
[null,null,null,null,null,null,null,"","","","",""]
[null,null,null,null,null,null,null,"","","","",""]
[null,null,null,null,null,null,null,"","","","",""]
[null,null,null,null,null,null,null,"","","","",""]
[null,null,null,null,null,null,null,{"$f":"nenrei(D788,E788)","v":""},{"$f":"nenreikubun(D788,E788)","v":""},{"$f":"IF(I788=\"幼児\",stdbw2000(C788,H788,F788),\"\")","v":""},{"$f":"himando(G788,J788)","v":""},{"$f":"hikubun1j(K788)","v":""}]
[null,null,null,null,null,null,null,"","","","",""]
[null,null,null,null,null,null,null,"","","","",""]
[null,null,null,null,null,null,null,"","","","",""]
[null,null,null,null,null,null,null,"","","","",""]
[null,null,null,null,null,null,null,"","","","",""]
[null,null,null,null,null,null,null,"","","","",""]
[null,null,null,null,null,null,null,"","","","",""]
[null,null,null,null,null,null,null,"","","","",""]
[null,null,null,null,null,null,null,"","","","",""]
[null,null,null,null,null,null,null,"","","","",""]
[null,null,null,null,null,null,null,"","","","",""]
[null,null,null,null,null,null,null,"","","","",""]
[null,null,null,null,null,null,null,"","","","",""]
[null,null,null,null,null,null,null,"","","","",""]
[null,null,null,null,null,null,null,"","","","",""]
[null,null,null,null,null,null,null,"","","","",""]
[null,null,null,null,null,null,null,"","","","",""]
[null,null,null,null,null,null,null,"","","","",""]
[null,null,null,null,null,null,null,"","","","",""]
[null,null,null,null,null,null,null,"","","","",""]
[null,null,null,null,null,null,null,"","","","",""]
[null,null,null,null,null,null,null,"","","","",""]
[null,null,null,null,null,null,null,"","","","",""]
[null,null,null,null,null,null,null,"","","","",""]
[null,null,null,null,null,null,null,"","","","",""]
[null,null,null,null,null,null,null,"","","","",""]
[null,null,null,null,null,null,null,"","","","",""]
[null,null,null,null,null,null,null,"","","","",""]
[null,null,null,null,null,null,null,"","","","",""]
[null,null,null,null,null,null,null,"","","","",""]
[null,null,null,null,null,null,null,"","","","",""]
[null,null,null,null,null,null,null,"","","","",""]
[null,null,null,null,null,null,null,"","","","",""]
[null,null,null,null,null,null,null,"","","","",""]
[null,null,null,null,null,null,null,"","","","",""]
[null,null,null,null,null,null,null,"","","","",""]
[null,null,null,null,null,null,null,"","","","",""]
[null,null,null,null,null,null,null,"","","","",""]
[null,null,null,null,null,null,null,"","","","",""]
[null,null,null,null,null,null,null,"","","","",""]
[null,null,null,null,null,null,null,"","","","",""]
[null,null,null,null,null,null,null,"","","","",""]
[null,null,null,null,null,null,null,"","","","",""]
[null,null,null,null,null,null,null,"","","","",""]
[null,null,null,null,null,null,null,"","","","",""]
[null,null,null,null,null,null,null,"","","","",""]
[null,null,null,null,null,null,null,"","","","",""]
[null,null,null,null,null,null,null,"","","","",""]
[null,null,null,null,null,null,null,"","","","",""]
[null,null,null,null,null,null,null,"","","","",""]
[null,null,null,null,null,null,null,"","","","",""]
[null,null,null,null,null,null,null,"","","","",""]
[null,null,null,null,null,null,null,"","","","",""]
[null,null,null,null,null,null,null,"","","","",""]
[null,null,null,null,null,null,null,"","","","",""]
[null,null,null,null,null,null,null,"","","","",""]
[null,null,null,null,null,null,null,"","","","",""]
[null,null,null,null,null,null,null,"","","","",""]
[null,null,null,null,null,null,null,"","","","",""]
[null,null,null,null,null,null,null,"","","","",""]
[null,null,null,null,null,null,null,"","","","",""]
[null,null,null,null,null,null,null,"","","","",""]
[null,null,null,null,null,null,null,"","","","",""]
[null,null,null,null,null,null,null,{"$f":"nenrei(D852,E852)","v":""},{"$f":"nenreikubun(D852,E852)","v":""},{"$f":"IF(I852=\"幼児\",stdbw2000(C852,H852,F852),\"\")","v":""},{"$f":"himando(G852,J852)","v":""},{"$f":"hikubun1j(K852)","v":""}]
[null,null,null,null,null,null,null,"","","","",""]
[null,null,null,null,null,null,null,"","","","",""]
[null,null,null,null,null,null,null,"","","","",""]
[null,null,null,null,null,null,null,"","","","",""]
[null,null,null,null,null,null,null,"","","","",""]
[null,null,null,null,null,null,null,"","","","",""]
[null,null,null,null,null,null,null,"","","","",""]
[null,null,null,null,null,null,null,"","","","",""]
[null,null,null,null,null,null,null,"","","","",""]
[null,null,null,null,null,null,null,"","","","",""]
[null,null,null,null,null,null,null,"","","","",""]
[null,null,null,null,null,null,null,"","","","",""]
[null,null,null,null,null,null,null,"","","","",""]
[null,null,null,null,null,null,null,"","","","",""]
[null,null,null,null,null,null,null,"","","","",""]
[null,null,null,null,null,null,null,"","","","",""]
[null,null,null,null,null,null,null,"","","","",""]
[null,null,null,null,null,null,null,"","","","",""]
[null,null,null,null,null,null,null,"","","","",""]
[null,null,null,null,null,null,null,"","","","",""]
[null,null,null,null,null,null,null,"","","","",""]
[null,null,null,null,null,null,null,"","","","",""]
[null,null,null,null,null,null,null,"","","","",""]
[null,null,null,null,null,null,null,"","","","",""]
[null,null,null,null,null,null,null,"","","","",""]
[null,null,null,null,null,null,null,"","","","",""]
[null,null,null,null,null,null,null,"","","","",""]
[null,null,null,null,null,null,null,"","","","",""]
[null,null,null,null,null,null,null,"","","","",""]
[null,null,null,null,null,null,null,"","","","",""]
[null,null,null,null,null,null,null,"","","","",""]
[null,null,null,null,null,null,null,"","","","",""]
[null,null,null,null,null,null,null,"","","","",""]
[null,null,null,null,null,null,null,"","","","",""]
[null,null,null,null,null,null,null,"","","","",""]
[null,null,null,null,null,null,null,"","","","",""]
[null,null,null,null,null,null,null,"","","","",""]
[null,null,null,null,null,null,null,"","","","",""]
[null,null,null,null,null,null,null,"","","","",""]
[null,null,null,null,null,null,null,"","","","",""]
[null,null,null,null,null,null,null,"","","","",""]
[null,null,null,null,null,null,null,"","","","",""]
[null,null,null,null,null,null,null,"","","","",""]
[null,null,null,null,null,null,null,"","","","",""]
[null,null,null,null,null,null,null,"","","","",""]
[null,null,null,null,null,null,null,"","","","",""]
[null,null,null,null,null,null,null,"","","","",""]
[null,null,null,null,null,null,null,"","","","",""]
[null,null,null,null,null,null,null,"","","","",""]
[null,null,null,null,null,null,null,"","","","",""]
[null,null,null,null,null,null,null,"","","","",""]
[null,null,null,null,null,null,null,"","","","",""]
[null,null,null,null,null,null,null,"","","","",""]
[null,null,null,null,null,null,null,"","","","",""]
[null,null,null,null,null,null,null,"","","","",""]
[null,null,null,null,null,null,null,"","","","",""]
[null,null,null,null,null,null,null,"","","","",""]
[null,null,null,null,null,null,null,"","","","",""]
[null,null,null,null,null,null,null,"","","","",""]
[null,null,null,null,null,null,null,"","","","",""]
[null,null,null,null,null,null,null,"","","","",""]
[null,null,null,null,null,null,null,"","","","",""]
[null,null,null,null,null,null,null,"","","","",""]
[null,null,null,null,null,null,null,{"$f":"nenrei(D916,E916)","v":""},{"$f":"nenreikubun(D916,E916)","v":""},{"$f":"IF(I916=\"幼児\",stdbw2000(C916,H916,F916),\"\")","v":""},{"$f":"himando(G916,J916)","v":""},{"$f":"hikubun1j(K916)","v":""}]
[null,null,null,null,null,null,null,"","","","",""]
[null,null,null,null,null,null,null,"","","","",""]
[null,null,null,null,null,null,null,"","","","",""]
[null,null,null,null,null,null,null,"","","","",""]
[null,null,null,null,null,null,null,"","","","",""]
[null,null,null,null,null,null,null,"","","","",""]
[null,null,null,null,null,null,null,"","","","",""]
[null,null,null,null,null,null,null,"","","","",""]
[null,null,null,null,null,null,null,"","","","",""]
[null,null,null,null,null,null,null,"","","","",""]
[null,null,null,null,null,null,null,"","","","",""]
[null,null,null,null,null,null,null,"","","","",""]
[null,null,null,null,null,null,null,"","","","",""]
[null,null,null,null,null,null,null,"","","","",""]
[null,null,null,null,null,null,null,"","","","",""]
[null,null,null,null,null,null,null,"","","","",""]
[null,null,null,null,null,null,null,"","","","",""]
[null,null,null,null,null,null,null,"","","","",""]
[null,null,null,null,null,null,null,"","","","",""]
[null,null,null,null,null,null,null,"","","","",""]
[null,null,null,null,null,null,null,"","","","",""]
[null,null,null,null,null,null,null,"","","","",""]
[null,null,null,null,null,null,null,"","","","",""]
[null,null,null,null,null,null,null,"","","","",""]
[null,null,null,null,null,null,null,"","","","",""]
[null,null,null,null,null,null,null,"","","","",""]
[null,null,null,null,null,null,null,"","","","",""]
[null,null,null,null,null,null,null,"","","","",""]
[null,null,null,null,null,null,null,"","","","",""]
[null,null,null,null,null,null,null,"","","","",""]
[null,null,null,null,null,null,null,"","","","",""]
[null,null,null,null,null,null,null,"","","","",""]
[null,null,null,null,null,null,null,"","","","",""]
[null,null,null,null,null,null,null,"","","","",""]
[null,null,null,null,null,null,null,"","","","",""]
[null,null,null,null,null,null,null,"","","","",""]
[null,null,null,null,null,null,null,"","","","",""]
[null,null,null,null,null,null,null,"","","","",""]
[null,null,null,null,null,null,null,"","","","",""]
[null,null,null,null,null,null,null,"","","","",""]
[null,null,null,null,null,null,null,"","","","",""]
[null,null,null,null,null,null,null,"","","","",""]
[null,null,null,null,null,null,null,"","","","",""]
[null,null,null,null,null,null,null,"","","","",""]
[null,null,null,null,null,null,null,"","","","",""]
[null,null,null,null,null,null,null,"","","","",""]
[null,null,null,null,null,null,null,"","","","",""]
[null,null,null,null,null,null,null,"","","","",""]
[null,null,null,null,null,null,null,"","","","",""]
[null,null,null,null,null,null,null,"","","","",""]
[null,null,null,null,null,null,null,"","","","",""]
[null,null,null,null,null,null,null,"","","","",""]
[null,null,null,null,null,null,null,"","","","",""]
[null,null,null,null,null,null,null,"","","","",""]
[null,null,null,null,null,null,null,"","","","",""]
[null,null,null,null,null,null,null,"","","","",""]
[null,null,null,null,null,null,null,"","","","",""]
[null,null,null,null,null,null,null,"","","","",""]
[null,null,null,null,null,null,null,"","","","",""]
[null,null,null,null,null,null,null,"","","","",""]
[null,null,null,null,null,null,null,"","","","",""]
[null,null,null,null,null,null,null,"","","","",""]
[null,null,null,null,null,null,null,"","","","",""]
[null,null,null,null,null,null,null,{"$f":"nenrei(D980,E980)","v":""},{"$f":"nenreikubun(D980,E980)","v":""},{"$f":"IF(I980=\"幼児\",stdbw2000(C980,H980,F980),\"\")","v":""},{"$f":"himando(G980,J980)","v":""},{"$f":"hikubun1j(K980)","v":""}]
[null,null,null,null,null,null,null,"","","","",""]
[null,null,null,null,null,null,null,"","","","",""]
[null,null,null,null,null,null,null,"","","","",""]
[null,null,null,null,null,null,null,"","","","",""]
[null,null,null,null,null,null,null,"","","","",""]
[null,null,null,null,null,null,null,"","","","",""]
[null,null,null,null,null,null,null,"","","","",""]
[null,null,null,null,null,null,null,"","","","",""]
[null,null,null,null,null,null,null,"","","","",""]
[null,null,null,null,null,null,null,"","","","",""]
[null,null,null,null,null,null,null,"","","","",""]
[null,null,null,null,null,null,null,"","","","",""]
[null,null,null,null,null,null,null,"","","","",""]
[null,null,null,null,null,null,null,"","","","",""]
[null,null,null,null,null,null,null,"","","","",""]
[null,null,null,null,null,null,null,"","","","",""]
[null,null,null,null,null,null,null,"","","","",""]
[null,null,null,null,null,null,null,"","","","",""]
[null,null,null,null,null,null,null,"","","","",""]
[null,null,null,null,null,null,null,"","","","",""]
[null,null,null,null,null,null,null,"","","","",""]
[null,null,null,null,null,null,null,"","","","",""]
[null,null,null,null,null,null,null,"","","","",""]
[null,null,null,null,null,null,null,"","","","",""]
[null,null,null,null,null,null,null,"","","","",""]
[null,null,null,null,null,null,null,"","","","",""]
[null,null,null,null,null,null,null,"","","","",""]
[null,null,null,null,null,null,null,"","","","",""]
[null,null,null,null,null,null,null,"","","","",""]
[null,null,null,null,null,null,null,"","","","",""]
[null,null,null,null,null,null,null,"","","","",""]
[null,null,null,null,null,null,null,"","","","",""]
[null,null,null,null,null,null,null,"","","","",""]
[null,null,null,null,null,null,null,"","","","",""]
[null,null,null,null,null,null,null,"","","","",""]
[null,null,null,null,null,null,null,"","","","",""]
[null,null,null,null,null,null,null,"","","","",""]
[null,null,null,null,null,null,null,"","","","",""]
[null,null,null,null,null,null,null,"","","","",""]

{"sheet":"3～5歳女児","index":2,"n_rows":1019,"n_cols":12,"rows_kept":1019,"cut":false,"hidden":false,"merged":[[17,7,17,11],[17,0,17,6],[1,4,12,11],[1,0,1,2]]}
["肥満度判定区分の集計表",null,null,null,"メモ欄"]
["幼児"]
[null,"人数","割合"]
["総数",{"$f":"SUM(B5:B10)","v":0},{"$f":"+B4/B$4","v":{"$error":"#DIV/0!"}}]
["やせすぎ",{"$f":"COUNTIF(L$20:L$1019,A5)","v":0},{"$error":"#DIV/0!"}]
["やせ",0,{"$error":"#DIV/0!"}]
["ふつう",0,{"$error":"#DIV/0!"}]
["ふとりぎみ",0,{"$error":"#DIV/0!"}]
["ややふとりすぎ",0,{"$error":"#DIV/0!"}]
["ふとりすぎ",0,{"$error":"#DIV/0!"}]
["やせ（再掲）※1",{"$f":"+B5+B6","v":0},{"$error":"#DIV/0!"}]
["肥満（再掲）※2",{"$f":"+B8+B9+B10","v":0},{"$error":"#DIV/0!"}]
["やせ＋肥満",{"$f":"+B11+B12","v":0},{"$error":"#DIV/0!"}]
["※1 やせ：やせすぎ，やせの合計。"]
["※2 肥満：ふとりぎみ，ややふとりすぎ，ふとりすぎの合計。"]
[]
["肥満度判定区分の簡易計算シート（３歳以上６歳未満の幼児）"]
["入　力　欄",null,null,null,null,null,null,"自　動　計　算"]
["No.\n(任意)","名前\n(任意)","性別\n(M:男,F:女)","生年月日\n(例:2010/5/1)","測定日\n(例:2013/10/3)","身長\n(cm)","体重\n(kg)","満年齢\n(歳)","年齢\n区分","標準体重\n(kg)","肥満度\n(%)","肥満度\n区分"]
[null,null,"F",null,null,null,null,{"$f":"nenrei(D20,E20)","v":""},{"$f":"nenreikubun(D20,E20)","v":""},{"$f":"IF(I20=\"幼児\",stdbw2000(C20,H20,F20),\"\")","v":""},{"$f":"himando(G20,J20)","v":""},{"$f":"hikubun1j(K20)","v":""}]
[null,null,"F",null,null,null,null,"","","","",""]
[null,null,"F",null,null,null,null,"","","","",""]
[null,null,"F",null,null,null,null,"","","","",""]
[null,null,"F",null,null,null,null,"","","","",""]
[null,null,"F",null,null,null,null,"","","","",""]
[null,null,"F",null,null,null,null,"","","","",""]
[null,null,"F",null,null,null,null,"","","","",""]
[null,null,"F",null,null,null,null,"","","","",""]
[null,null,"F",null,null,null,null,"","","","",""]
[null,null,"F",null,null,null,null,"","","","",""]
[null,null,"F",null,null,null,null,"","","","",""]
[null,null,"F",null,null,null,null,"","","","",""]
[null,null,"F",null,null,null,null,"","","","",""]
[null,null,"F",null,null,null,null,"","","","",""]
[null,null,"F",null,null,null,null,"","","","",""]
[null,null,"F",null,null,null,null,"","","","",""]
[null,null,"F",null,null,null,null,"","","","",""]
[null,null,"F",null,null,null,null,"","","","",""]
[null,null,"F",null,null,null,null,"","","","",""]
[null,null,"F",null,null,null,null,"","","","",""]
[null,null,"F",null,null,null,null,"","","","",""]
[null,null,"F",null,null,null,null,"","","","",""]
[null,null,"F",null,null,null,null,"","","","",""]
[null,null,"F",null,null,null,null,"","","","",""]
[null,null,"F",null,null,null,null,"","","","",""]
[null,null,"F",null,null,null,null,"","","","",""]
[null,null,"F",null,null,null,null,"","","","",""]
[null,null,"F",null,null,null,null,"","","","",""]
[null,null,"F",null,null,null,null,"","","","",""]
[null,null,"F",null,null,null,null,"","","","",""]
[null,null,"F",null,null,null,null,"","","","",""]
[null,null,"F",null,null,null,null,"","","","",""]
[null,null,"F",null,null,null,null,"","","","",""]
[null,null,"F",null,null,null,null,"","","","",""]
[null,null,"F",null,null,null,null,"","","","",""]
[null,null,"F",null,null,null,null,"","","","",""]
[null,null,"F",null,null,null,null,"","","","",""]
[null,null,"F",null,null,null,null,"","","","",""]
[null,null,"F",null,null,null,null,"","","","",""]
[null,null,"F",null,null,null,null,"","","","",""]
[null,null,"F",null,null,null,null,"","","","",""]
[null,null,"F",null,null,null,null,"","","","",""]
[null,null,"F",null,null,null,null,"","","","",""]
[null,null,"F",null,null,null,null,"","","","",""]
[null,null,"F",null,null,null,null,"","","","",""]
[null,null,"F",null,null,null,null,"","","","",""]
[null,null,"F",null,null,null,null,"","","","",""]
[null,null,"F",null,null,null,null,"","","","",""]
[null,null,"F",null,null,null,null,"","","","",""]
[null,null,"F",null,null,null,null,"","","","",""]
[null,null,"F",null,null,null,null,"","","","",""]
[null,null,"F",null,null,null,null,"","","","",""]
[null,null,"F",null,null,null,null,"","","","",""]
[null,null,"F",null,null,null,null,"","","","",""]
[null,null,"F",null,null,null,null,"","","","",""]
[null,null,"F",null,null,null,null,"","","","",""]
[null,null,"F",null,null,null,null,"","","","",""]
[null,null,"F",null,null,null,null,"","","","",""]
[null,null,"F",null,null,null,null,"","","","",""]
[null,null,"F",null,null,null,null,"","","","",""]
[null,null,"F",null,null,null,null,"","","","",""]
[null,null,"F",null,null,null,null,"","","","",""]
[null,null,"F",null,null,null,null,"","","","",""]
[null,null,"F",null,null,null,null,{"$f":"nenrei(D84,E84)","v":""},{"$f":"nenreikubun(D84,E84)","v":""},{"$f":"IF(I84=\"幼児\",stdbw2000(C84,H84,F84),\"\")","v":""},{"$f":"himando(G84,J84)","v":""},{"$f":"hikubun1j(K84)","v":""}]
[null,null,"F",null,null,null,null,"","","","",""]
[null,null,"F",null,null,null,null,"","","","",""]
[null,null,"F",null,null,null,null,"","","","",""]
[null,null,"F",null,null,null,null,"","","","",""]
[null,null,"F",null,null,null,null,"","","","",""]
[null,null,"F",null,null,null,null,"","","","",""]
[null,null,"F",null,null,null,null,"","","","",""]
[null,null,"F",null,null,null,null,"","","","",""]
[null,null,"F",null,null,null,null,"","","","",""]
[null,null,"F",null,null,null,null,"","","","",""]
[null,null,"F",null,null,null,null,"","","","",""]
[null,null,"F",null,null,null,null,"","","","",""]
[null,null,"F",null,null,null,null,"","","","",""]
[null,null,"F",null,null,null,null,"","","","",""]
[null,null,"F",null,null,null,null,"","","","",""]
[null,null,"F",null,null,null,null,"","","","",""]
[null,null,"F",null,null,null,null,"","","","",""]
[null,null,"F",null,null,null,null,"","","","",""]
[null,null,"F",null,null,null,null,"","","","",""]
[null,null,"F",null,null,null,null,"","","","",""]
[null,null,"F",null,null,null,null,"","","","",""]
[null,null,"F",null,null,null,null,"","","","",""]
[null,null,"F",null,null,null,null,"","","","",""]
[null,null,"F",null,null,null,null,"","","","",""]
[null,null,"F",null,null,null,null,"","","","",""]
[null,null,"F",null,null,null,null,"","","","",""]
[null,null,null,null,null,null,null,"","","","",""]
[null,null,null,null,null,null,null,"","","","",""]
[null,null,null,null,null,null,null,"","","","",""]
[null,null,null,null,null,null,null,"","","","",""]
[null,null,null,null,null,null,null,"","","","",""]
[null,null,null,null,null,null,null,"","","","",""]
[null,null,null,null,null,null,null,"","","","",""]
[null,null,null,null,null,null,null,"","","","",""]
[null,null,null,null,null,null,null,"","","","",""]
[null,null,null,null,null,null,null,"","","","",""]
[null,null,null,null,null,null,null,"","","","",""]
[null,null,null,null,null,null,null,"","","","",""]
[null,null,null,null,null,null,null,"","","","",""]
[null,null,null,null,null,null,null,"","","","",""]
[null,null,null,null,null,null,null,"","","","",""]
[null,null,null,null,null,null,null,"","","","",""]
[null,null,null,null,null,null,null,"","","","",""]
[null,null,null,null,null,null,null,"","","","",""]
[null,null,null,null,null,null,null,"","","","",""]
[null,null,null,null,null,null,null,"","","","",""]
[null,null,null,null,null,null,null,"","","","",""]
[null,null,null,null,null,null,null,"","","","",""]
[null,null,null,null,null,null,null,"","","","",""]
[null,null,null,null,null,null,null,"","","","",""]
[null,null,null,null,null,null,null,"","","","",""]
[null,null,null,null,null,null,null,"","","","",""]
[null,null,null,null,null,null,null,"","","","",""]
[null,null,null,null,null,null,null,"","","","",""]
[null,null,null,null,null,null,null,"","","","",""]
[null,null,null,null,null,null,null,"","","","",""]
[null,null,null,null,null,null,null,"","","","",""]
[null,null,null,null,null,null,null,"","","","",""]
[null,null,null,null,null,null,null,"","","","",""]
[null,null,null,null,null,null,null,"","","","",""]
[null,null,null,null,null,null,null,"","","","",""]
[null,null,null,null,null,null,null,"","","","",""]
[null,null,null,null,null,null,null,"","","","",""]
[null,null,null,null,null,null,null,{"$f":"nenrei(D148,E148)","v":""},{"$f":"nenreikubun(D148,E148)","v":""},{"$f":"IF(I148=\"幼児\",stdbw2000(C148,H148,F148),\"\")","v":""},{"$f":"himando(G148,J148)","v":""},{"$f":"hikubun1j(K148)","v":""}]
[null,null,null,null,null,null,null,"","","","",""]
[null,null,null,null,null,null,null,"","","","",""]
[null,null,null,null,null,null,null,"","","","",""]
[null,null,null,null,null,null,null,"","","","",""]
[null,null,null,null,null,null,null,"","","","",""]
[null,null,null,null,null,null,null,"","","","",""]
[null,null,null,null,null,null,null,"","","","",""]
[null,null,null,null,null,null,null,"","","","",""]
[null,null,null,null,null,null,null,"","","","",""]
[null,null,null,null,null,null,null,"","","","",""]
[null,null,null,null,null,null,null,"","","","",""]
[null,null,null,null,null,null,null,"","","","",""]
[null,null,null,null,null,null,null,"","","","",""]
[null,null,null,null,null,null,null,"","","","",""]
[null,null,null,null,null,null,null,"","","","",""]
[null,null,null,null,null,null,null,"","","","",""]
[null,null,null,null,null,null,null,"","","","",""]
[null,null,null,null,null,null,null,"","","","",""]
[null,null,null,null,null,null,null,"","","","",""]
[null,null,null,null,null,null,null,"","","","",""]
[null,null,null,null,null,null,null,"","","","",""]
[null,null,null,null,null,null,null,"","","","",""]
[null,null,null,null,null,null,null,"","","","",""]
[null,null,null,null,null,null,null,"","","","",""]
[null,null,null,null,null,null,null,"","","","",""]
[null,null,null,null,null,null,null,"","","","",""]
[null,null,null,null,null,null,null,"","","","",""]
[null,null,null,null,null,null,null,"","","","",""]
[null,null,null,null,null,null,null,"","","","",""]
[null,null,null,null,null,null,null,"","","","",""]
[null,null,null,null,null,null,null,"","","","",""]
[null,null,null,null,null,null,null,"","","","",""]
[null,null,null,null,null,null,null,"","","","",""]
[null,null,null,null,null,null,null,"","","","",""]
[null,null,null,null,null,null,null,"","","","",""]
[null,null,null,null,null,null,null,"","","","",""]
[null,null,null,null,null,null,null,"","","","",""]
[null,null,null,null,null,null,null,"","","","",""]
[null,null,null,null,null,null,null,"","","","",""]
[null,null,null,null,null,null,null,"","","","",""]
[null,null,null,null,null,null,null,"","","","",""]
[null,null,null,null,null,null,null,"","","","",""]
[null,null,null,null,null,null,null,"","","","",""]
[null,null,null,null,null,null,null,"","","","",""]
[null,null,null,null,null,null,null,"","","","",""]
[null,null,null,null,null,null,null,"","","","",""]
[null,null,null,null,null,null,null,"","","","",""]
[null,null,null,null,null,null,null,"","","","",""]
[null,null,null,null,null,null,null,"","","","",""]
[null,null,null,null,null,null,null,"","","","",""]
[null,null,null,null,null,null,null,"","","","",""]
[null,null,null,null,null,null,null,"","","","",""]
[null,null,null,null,null,null,null,"","","","",""]
[null,null,null,null,null,null,null,"","","","",""]
[null,null,null,null,null,null,null,"","","","",""]
[null,null,null,null,null,null,null,"","","","",""]
[null,null,null,null,null,null,null,"","","","",""]
[null,null,null,null,null,null,null,"","","","",""]
[null,null,null,null,null,null,null,"","","","",""]
[null,null,null,null,null,null,null,"","","","",""]
[null,null,null,null,null,null,null,"","","","",""]
[null,null,null,null,null,null,null,"","","","",""]
[null,null,null,null,null,null,null,"","","","",""]
[null,null,null,null,null,null,null,{"$f":"nenrei(D212,E212)","v":""},{"$f":"nenreikubun(D212,E212)","v":""},{"$f":"IF(I212=\"幼児\",stdbw2000(C212,H212,F212),\"\")","v":""},{"$f":"himando(G212,J212)","v":""},{"$f":"hikubun1j(K212)","v":""}]
[null,null,null,null,null,null,null,"","","","",""]
[null,null,null,null,null,null,null,"","","","",""]
[null,null,null,null,null,null,null,"","","","",""]
[null,null,null,null,null,null,null,"","","","",""]
[null,null,null,null,null,null,null,"","","","",""]
[null,null,null,null,null,null,null,"","","","",""]
[null,null,null,null,null,null,null,"","","","",""]
[null,null,null,null,null,null,null,"","","","",""]
[null,null,null,null,null,null,null,"","","","",""]
[null,null,null,null,null,null,null,"","","","",""]
[null,null,null,null,null,null,null,"","","","",""]
[null,null,null,null,null,null,null,"","","","",""]
[null,null,null,null,null,null,null,"","","","",""]
[null,null,null,null,null,null,null,"","","","",""]
[null,null,null,null,null,null,null,"","","","",""]
[null,null,null,null,null,null,null,"","","","",""]
[null,null,null,null,null,null,null,"","","","",""]
[null,null,null,null,null,null,null,"","","","",""]
[null,null,null,null,null,null,null,"","","","",""]
[null,null,null,null,null,null,null,"","","","",""]
[null,null,null,null,null,null,null,"","","","",""]
[null,null,null,null,null,null,null,"","","","",""]
[null,null,null,null,null,null,null,"","","","",""]
[null,null,null,null,null,null,null,"","","","",""]
[null,null,null,null,null,null,null,"","","","",""]
[null,null,null,null,null,null,null,"","","","",""]
[null,null,null,null,null,null,null,"","","","",""]
[null,null,null,null,null,null,null,"","","","",""]
[null,null,null,null,null,null,null,"","","","",""]
[null,null,null,null,null,null,null,"","","","",""]
[null,null,null,null,null,null,null,"","","","",""]
[null,null,null,null,null,null,null,"","","","",""]
[null,null,null,null,null,null,null,"","","","",""]
[null,null,null,null,null,null,null,"","","","",""]
[null,null,null,null,null,null,null,"","","","",""]
[null,null,null,null,null,null,null,"","","","",""]
[null,null,null,null,null,null,null,"","","","",""]
[null,null,null,null,null,null,null,"","","","",""]
[null,null,null,null,null,null,null,"","","","",""]
[null,null,null,null,null,null,null,"","","","",""]
[null,null,null,null,null,null,null,"","","","",""]
[null,null,null,null,null,null,null,"","","","",""]
[null,null,null,null,null,null,null,"","","","",""]
[null,null,null,null,null,null,null,"","","","",""]
[null,null,null,null,null,null,null,"","","","",""]
[null,null,null,null,null,null,null,"","","","",""]
[null,null,null,null,null,null,null,"","","","",""]
[null,null,null,null,null,null,null,"","","","",""]
[null,null,null,null,null,null,null,"","","","",""]
[null,null,null,null,null,null,null,"","","","",""]
[null,null,null,null,null,null,null,"","","","",""]
[null,null,null,null,null,null,null,"","","","",""]
[null,null,null,null,null,null,null,"","","","",""]
[null,null,null,null,null,null,null,"","","","",""]
[null,null,null,null,null,null,null,"","","","",""]
[null,null,null,null,null,null,null,"","","","",""]
[null,null,null,null,null,null,null,"","","","",""]
[null,null,null,null,null,null,null,"","","","",""]
[null,null,null,null,null,null,null,"","","","",""]
[null,null,null,null,null,null,null,"","","","",""]
[null,null,null,null,null,null,null,"","","","",""]
[null,null,null,null,null,null,null,"","","","",""]
[null,null,null,null,null,null,null,"","","","",""]
[null,null,null,null,null,null,null,{"$f":"nenrei(D276,E276)","v":""},{"$f":"nenreikubun(D276,E276)","v":""},{"$f":"IF(I276=\"幼児\",stdbw2000(C276,H276,F276),\"\")","v":""},{"$f":"himando(G276,J276)","v":""},{"$f":"hikubun1j(K276)","v":""}]
[null,null,null,null,null,null,null,"","","","",""]
[null,null,null,null,null,null,null,"","","","",""]
[null,null,null,null,null,null,null,"","","","",""]
[null,null,null,null,null,null,null,"","","","",""]
[null,null,null,null,null,null,null,"","","","",""]
[null,null,null,null,null,null,null,"","","","",""]
[null,null,null,null,null,null,null,"","","","",""]
[null,null,null,null,null,null,null,"","","","",""]
[null,null,null,null,null,null,null,"","","","",""]
[null,null,null,null,null,null,null,"","","","",""]
[null,null,null,null,null,null,null,"","","","",""]
[null,null,null,null,null,null,null,"","","","",""]
[null,null,null,null,null,null,null,"","","","",""]
[null,null,null,null,null,null,null,"","","","",""]
[null,null,null,null,null,null,null,"","","","",""]
[null,null,null,null,null,null,null,"","","","",""]
[null,null,null,null,null,null,null,"","","","",""]
[null,null,null,null,null,null,null,"","","","",""]
[null,null,null,null,null,null,null,"","","","",""]
[null,null,null,null,null,null,null,"","","","",""]
[null,null,null,null,null,null,null,"","","","",""]
[null,null,null,null,null,null,null,"","","","",""]
[null,null,null,null,null,null,null,"","","","",""]
[null,null,null,null,null,null,null,"","","","",""]
[null,null,null,null,null,null,null,"","","","",""]
[null,null,null,null,null,null,null,"","","","",""]
[null,null,null,null,null,null,null,"","","","",""]
[null,null,null,null,null,null,null,"","","","",""]
[null,null,null,null,null,null,null,"","","","",""]
[null,null,null,null,null,null,null,"","","","",""]
[null,null,null,null,null,null,null,"","","","",""]
[null,null,null,null,null,null,null,"","","","",""]
[null,null,null,null,null,null,null,"","","","",""]
[null,null,null,null,null,null,null,"","","","",""]
[null,null,null,null,null,null,null,"","","","",""]
[null,null,null,null,null,null,null,"","","","",""]
[null,null,null,null,null,null,null,"","","","",""]
[null,null,null,null,null,null,null,"","","","",""]
[null,null,null,null,null,null,null,"","","","",""]
[null,null,null,null,null,null,null,"","","","",""]
[null,null,null,null,null,null,null,"","","","",""]
[null,null,null,null,null,null,null,"","","","",""]
[null,null,null,null,null,null,null,"","","","",""]
[null,null,null,null,null,null,null,"","","","",""]
[null,null,null,null,null,null,null,"","","","",""]
[null,null,null,null,null,null,null,"","","","",""]
[null,null,null,null,null,null,null,"","","","",""]
[null,null,null,null,null,null,null,"","","","",""]
[null,null,null,null,null,null,null,"","","","",""]
[null,null,null,null,null,null,null,"","","","",""]
[null,null,null,null,null,null,null,"","","","",""]
[null,null,null,null,null,null,null,"","","","",""]
[null,null,null,null,null,null,null,"","","","",""]
[null,null,null,null,null,null,null,"","","","",""]
[null,null,null,null,null,null,null,"","","","",""]
[null,null,null,null,null,null,null,"","","","",""]
[null,null,null,null,null,null,null,"","","","",""]
[null,null,null,null,null,null,null,"","","","",""]
[null,null,null,null,null,null,null,"","","","",""]
[null,null,null,null,null,null,null,"","","","",""]
[null,null,null,null,null,null,null,"","","","",""]
[null,null,null,null,null,null,null,"","","","",""]
[null,null,null,null,null,null,null,"","","","",""]
[null,null,null,null,null,null,null,{"$f":"nenrei(D340,E340)","v":""},{"$f":"nenreikubun(D340,E340)","v":""},{"$f":"IF(I340=\"幼児\",stdbw2000(C340,H340,F340),\"\")","v":""},{"$f":"himando(G340,J340)","v":""},{"$f":"hikubun1j(K340)","v":""}]
[null,null,null,null,null,null,null,"","","","",""]
[null,null,null,null,null,null,null,"","","","",""]
[null,null,null,null,null,null,null,"","","","",""]
[null,null,null,null,null,null,null,"","","","",""]
[null,null,null,null,null,null,null,"","","","",""]
[null,null,null,null,null,null,null,"","","","",""]
[null,null,null,null,null,null,null,"","","","",""]
[null,null,null,null,null,null,null,"","","","",""]
[null,null,null,null,null,null,null,"","","","",""]
[null,null,null,null,null,null,null,"","","","",""]
[null,null,null,null,null,null,null,"","","","",""]
[null,null,null,null,null,null,null,"","","","",""]
[null,null,null,null,null,null,null,"","","","",""]
[null,null,null,null,null,null,null,"","","","",""]
[null,null,null,null,null,null,null,"","","","",""]
[null,null,null,null,null,null,null,"","","","",""]
[null,null,null,null,null,null,null,"","","","",""]
[null,null,null,null,null,null,null,"","","","",""]
[null,null,null,null,null,null,null,"","","","",""]
[null,null,null,null,null,null,null,"","","","",""]
[null,null,null,null,null,null,null,"","","","",""]
[null,null,null,null,null,null,null,"","","","",""]
[null,null,null,null,null,null,null,"","","","",""]
[null,null,null,null,null,null,null,"","","","",""]
[null,null,null,null,null,null,null,"","","","",""]
[null,null,null,null,null,null,null,"","","","",""]
[null,null,null,null,null,null,null,"","","","",""]
[null,null,null,null,null,null,null,"","","","",""]
[null,null,null,null,null,null,null,"","","","",""]
[null,null,null,null,null,null,null,"","","","",""]
[null,null,null,null,null,null,null,"","","","",""]
[null,null,null,null,null,null,null,"","","","",""]
[null,null,null,null,null,null,null,"","","","",""]
[null,null,null,null,null,null,null,"","","","",""]
[null,null,null,null,null,null,null,"","","","",""]
[null,null,null,null,null,null,null,"","","","",""]
[null,null,null,null,null,null,null,"","","","",""]
[null,null,null,null,null,null,null,"","","","",""]
[null,null,null,null,null,null,null,"","","","",""]
[null,null,null,null,null,null,null,"","","","",""]
[null,null,null,null,null,null,null,"","","","",""]
[null,null,null,null,null,null,null,"","","","",""]
[null,null,null,null,null,null,null,"","","","",""]
[null,null,null,null,null,null,null,"","","","",""]
[null,null,null,null,null,null,null,"","","","",""]
[null,null,null,null,null,null,null,"","","","",""]
[null,null,null,null,null,null,null,"","","","",""]
[null,null,null,null,null,null,null,"","","","",""]
[null,null,null,null,null,null,null,"","","","",""]
[null,null,null,null,null,null,null,"","","","",""]
[null,null,null,null,null,null,null,"","","","",""]
[null,null,null,null,null,null,null,"","","","",""]
[null,null,null,null,null,null,null,"","","","",""]
[null,null,null,null,null,null,null,"","","","",""]
[null,null,null,null,null,null,null,"","","","",""]
[null,null,null,null,null,null,null,"","","","",""]
[null,null,null,null,null,null,null,"","","","",""]
[null,null,null,null,null,null,null,"","","","",""]
[null,null,null,null,null,null,null,"","","","",""]
[null,null,null,null,null,null,null,"","","","",""]
[null,null,null,null,null,null,null,"","","","",""]
[null,null,null,null,null,null,null,"","","","",""]
[null,null,null,null,null,null,null,"","","","",""]
[null,null,null,null,null,null,null,{"$f":"nenrei(D404,E404)","v":""},{"$f":"nenreikubun(D404,E404)","v":""},{"$f":"IF(I404=\"幼児\",stdbw2000(C404,H404,F404),\"\")","v":""},{"$f":"himando(G404,J404)","v":""},{"$f":"hikubun1j(K404)","v":""}]
[null,null,null,null,null,null,null,"","","","",""]
[null,null,null,null,null,null,null,"","","","",""]
[null,null,null,null,null,null,null,"","","","",""]
[null,null,null,null,null,null,null,"","","","",""]
[null,null,null,null,null,null,null,"","","","",""]
[null,null,null,null,null,null,null,"","","","",""]
[null,null,null,null,null,null,null,"","","","",""]
[null,null,null,null,null,null,null,"","","","",""]
[null,null,null,null,null,null,null,"","","","",""]
[null,null,null,null,null,null,null,"","","","",""]
[null,null,null,null,null,null,null,"","","","",""]
[null,null,null,null,null,null,null,"","","","",""]
[null,null,null,null,null,null,null,"","","","",""]
[null,null,null,null,null,null,null,"","","","",""]
[null,null,null,null,null,null,null,"","","","",""]
[null,null,null,null,null,null,null,"","","","",""]
[null,null,null,null,null,null,null,"","","","",""]
[null,null,null,null,null,null,null,"","","","",""]
[null,null,null,null,null,null,null,"","","","",""]
[null,null,null,null,null,null,null,"","","","",""]
[null,null,null,null,null,null,null,"","","","",""]
[null,null,null,null,null,null,null,"","","","",""]
[null,null,null,null,null,null,null,"","","","",""]
[null,null,null,null,null,null,null,"","","","",""]
[null,null,null,null,null,null,null,"","","","",""]
[null,null,null,null,null,null,null,"","","","",""]
[null,null,null,null,null,null,null,"","","","",""]
[null,null,null,null,null,null,null,"","","","",""]
[null,null,null,null,null,null,null,"","","","",""]
[null,null,null,null,null,null,null,"","","","",""]
[null,null,null,null,null,null,null,"","","","",""]
[null,null,null,null,null,null,null,"","","","",""]
[null,null,null,null,null,null,null,"","","","",""]
[null,null,null,null,null,null,null,"","","","",""]
[null,null,null,null,null,null,null,"","","","",""]
[null,null,null,null,null,null,null,"","","","",""]
[null,null,null,null,null,null,null,"","","","",""]
[null,null,null,null,null,null,null,"","","","",""]
[null,null,null,null,null,null,null,"","","","",""]
[null,null,null,null,null,null,null,"","","","",""]
[null,null,null,null,null,null,null,"","","","",""]
[null,null,null,null,null,null,null,"","","","",""]
[null,null,null,null,null,null,null,"","","","",""]
[null,null,null,null,null,null,null,"","","","",""]
[null,null,null,null,null,null,null,"","","","",""]
[null,null,null,null,null,null,null,"","","","",""]
[null,null,null,null,null,null,null,"","","","",""]
[null,null,null,null,null,null,null,"","","","",""]
[null,null,null,null,null,null,null,"","","","",""]
[null,null,null,null,null,null,null,"","","","",""]
[null,null,null,null,null,null,null,"","","","",""]
[null,null,null,null,null,null,null,"","","","",""]
[null,null,null,null,null,null,null,"","","","",""]
[null,null,null,null,null,null,null,"","","","",""]
[null,null,null,null,null,null,null,"","","","",""]
[null,null,null,null,null,null,null,"","","","",""]
[null,null,null,null,null,null,null,"","","","",""]
[null,null,null,null,null,null,null,"","","","",""]
[null,null,null,null,null,null,null,"","","","",""]
[null,null,null,null,null,null,null,"","","","",""]
[null,null,null,null,null,null,null,"","","","",""]
[null,null,null,null,null,null,null,"","","","",""]
[null,null,null,null,null,null,null,"","","","",""]
[null,null,null,null,null,null,null,{"$f":"nenrei(D468,E468)","v":""},{"$f":"nenreikubun(D468,E468)","v":""},{"$f":"IF(I468=\"幼児\",stdbw2000(C468,H468,F468),\"\")","v":""},{"$f":"himando(G468,J468)","v":""},{"$f":"hikubun1j(K468)","v":""}]
[null,null,null,null,null,null,null,"","","","",""]
[null,null,null,null,null,null,null,"","","","",""]
[null,null,null,null,null,null,null,"","","","",""]
[null,null,null,null,null,null,null,"","","","",""]
[null,null,null,null,null,null,null,"","","","",""]
[null,null,null,null,null,null,null,"","","","",""]
[null,null,null,null,null,null,null,"","","","",""]
[null,null,null,null,null,null,null,"","","","",""]
[null,null,null,null,null,null,null,"","","","",""]
[null,null,null,null,null,null,null,"","","","",""]
[null,null,null,null,null,null,null,"","","","",""]
[null,null,null,null,null,null,null,"","","","",""]
[null,null,null,null,null,null,null,"","","","",""]
[null,null,null,null,null,null,null,"","","","",""]
[null,null,null,null,null,null,null,"","","","",""]
[null,null,null,null,null,null,null,"","","","",""]
[null,null,null,null,null,null,null,"","","","",""]
[null,null,null,null,null,null,null,"","","","",""]
[null,null,null,null,null,null,null,"","","","",""]
[null,null,null,null,null,null,null,"","","","",""]
[null,null,null,null,null,null,null,"","","","",""]
[null,null,null,null,null,null,null,"","","","",""]
[null,null,null,null,null,null,null,"","","","",""]
[null,null,null,null,null,null,null,"","","","",""]
[null,null,null,null,null,null,null,"","","","",""]
[null,null,null,null,null,null,null,"","","","",""]
[null,null,null,null,null,null,null,"","","","",""]
[null,null,null,null,null,null,null,"","","","",""]
[null,null,null,null,null,null,null,"","","","",""]
[null,null,null,null,null,null,null,"","","","",""]
[null,null,null,null,null,null,null,"","","","",""]
[null,null,null,null,null,null,null,"","","","",""]
[null,null,null,null,null,null,null,"","","","",""]
[null,null,null,null,null,null,null,"","","","",""]
[null,null,null,null,null,null,null,"","","","",""]
[null,null,null,null,null,null,null,"","","","",""]
[null,null,null,null,null,null,null,"","","","",""]
[null,null,null,null,null,null,null,"","","","",""]
[null,null,null,null,null,null,null,"","","","",""]
[null,null,null,null,null,null,null,"","","","",""]
[null,null,null,null,null,null,null,"","","","",""]
[null,null,null,null,null,null,null,"","","","",""]
[null,null,null,null,null,null,null,"","","","",""]
[null,null,null,null,null,null,null,"","","","",""]
[null,null,null,null,null,null,null,"","","","",""]
[null,null,null,null,null,null,null,"","","","",""]
[null,null,null,null,null,null,null,"","","","",""]
[null,null,null,null,null,null,null,"","","","",""]
[null,null,null,null,null,null,null,"","","","",""]
[null,null,null,null,null,null,null,"","","","",""]
[null,null,null,null,null,null,null,"","","","",""]
[null,null,null,null,null,null,null,"","","","",""]
[null,null,null,null,null,null,null,"","","","",""]
[null,null,null,null,null,null,null,"","","","",""]
[null,null,null,null,null,null,null,"","","","",""]
[null,null,null,null,null,null,null,"","","","",""]
[null,null,null,null,null,null,null,"","","","",""]
[null,null,null,null,null,null,null,"","","","",""]
[null,null,null,null,null,null,null,"","","","",""]
[null,null,null,null,null,null,null,"","","","",""]
[null,null,null,null,null,null,null,"","","","",""]
[null,null,null,null,null,null,null,"","","","",""]
[null,null,null,null,null,null,null,"","","","",""]
[null,null,null,null,null,null,null,{"$f":"nenrei(D532,E532)","v":""},{"$f":"nenreikubun(D532,E532)","v":""},{"$f":"IF(I532=\"幼児\",stdbw2000(C532,H532,F532),\"\")","v":""},{"$f":"himando(G532,J532)","v":""},{"$f":"hikubun1j(K532)","v":""}]
[null,null,null,null,null,null,null,"","","","",""]
[null,null,null,null,null,null,null,"","","","",""]
[null,null,null,null,null,null,null,"","","","",""]
[null,null,null,null,null,null,null,"","","","",""]
[null,null,null,null,null,null,null,"","","","",""]
[null,null,null,null,null,null,null,"","","","",""]
[null,null,null,null,null,null,null,"","","","",""]
[null,null,null,null,null,null,null,"","","","",""]
[null,null,null,null,null,null,null,"","","","",""]
[null,null,null,null,null,null,null,"","","","",""]
[null,null,null,null,null,null,null,"","","","",""]
[null,null,null,null,null,null,null,"","","","",""]
[null,null,null,null,null,null,null,"","","","",""]
[null,null,null,null,null,null,null,"","","","",""]
[null,null,null,null,null,null,null,"","","","",""]
[null,null,null,null,null,null,null,"","","","",""]
[null,null,null,null,null,null,null,"","","","",""]
[null,null,null,null,null,null,null,"","","","",""]
[null,null,null,null,null,null,null,"","","","",""]
[null,null,null,null,null,null,null,"","","","",""]
[null,null,null,null,null,null,null,"","","","",""]
[null,null,null,null,null,null,null,"","","","",""]
[null,null,null,null,null,null,null,"","","","",""]
[null,null,null,null,null,null,null,"","","","",""]
[null,null,null,null,null,null,null,"","","","",""]
[null,null,null,null,null,null,null,"","","","",""]
[null,null,null,null,null,null,null,"","","","",""]
[null,null,null,null,null,null,null,"","","","",""]
[null,null,null,null,null,null,null,"","","","",""]
[null,null,null,null,null,null,null,"","","","",""]
[null,null,null,null,null,null,null,"","","","",""]
[null,null,null,null,null,null,null,"","","","",""]
[null,null,null,null,null,null,null,"","","","",""]
[null,null,null,null,null,null,null,"","","","",""]
[null,null,null,null,null,null,null,"","","","",""]
[null,null,null,null,null,null,null,"","","","",""]
[null,null,null,null,null,null,null,"","","","",""]
[null,null,null,null,null,null,null,"","","","",""]
[null,null,null,null,null,null,null,"","","","",""]
[null,null,null,null,null,null,null,"","","","",""]
[null,null,null,null,null,null,null,"","","","",""]
[null,null,null,null,null,null,null,"","","","",""]
[null,null,null,null,null,null,null,"","","","",""]
[null,null,null,null,null,null,null,"","","","",""]
[null,null,null,null,null,null,null,"","","","",""]
[null,null,null,null,null,null,null,"","","","",""]
[null,null,null,null,null,null,null,"","","","",""]
[null,null,null,null,null,null,null,"","","","",""]
[null,null,null,null,null,null,null,"","","","",""]
[null,null,null,null,null,null,null,"","","","",""]
[null,null,null,null,null,null,null,"","","","",""]
[null,null,null,null,null,null,null,"","","","",""]
[null,null,null,null,null,null,null,"","","","",""]
[null,null,null,null,null,null,null,"","","","",""]
[null,null,null,null,null,null,null,"","","","",""]
[null,null,null,null,null,null,null,"","","","",""]
[null,null,null,null,null,null,null,"","","","",""]
[null,null,null,null,null,null,null,"","","","",""]
[null,null,null,null,null,null,null,"","","","",""]
[null,null,null,null,null,null,null,"","","","",""]
[null,null,null,null,null,null,null,"","","","",""]
[null,null,null,null,null,null,null,"","","","",""]
[null,null,null,null,null,null,null,"","","","",""]
[null,null,null,null,null,null,null,{"$f":"nenrei(D596,E596)","v":""},{"$f":"nenreikubun(D596,E596)","v":""},{"$f":"IF(I596=\"幼児\",stdbw2000(C596,H596,F596),\"\")","v":""},{"$f":"himando(G596,J596)","v":""},{"$f":"hikubun1j(K596)","v":""}]
[null,null,null,null,null,null,null,"","","","",""]
[null,null,null,null,null,null,null,"","","","",""]
[null,null,null,null,null,null,null,"","","","",""]
[null,null,null,null,null,null,null,"","","","",""]
[null,null,null,null,null,null,null,"","","","",""]
[null,null,null,null,null,null,null,"","","","",""]
[null,null,null,null,null,null,null,"","","","",""]
[null,null,null,null,null,null,null,"","","","",""]
[null,null,null,null,null,null,null,"","","","",""]
[null,null,null,null,null,null,null,"","","","",""]
[null,null,null,null,null,null,null,"","","","",""]
[null,null,null,null,null,null,null,"","","","",""]
[null,null,null,null,null,null,null,"","","","",""]
[null,null,null,null,null,null,null,"","","","",""]
[null,null,null,null,null,null,null,"","","","",""]
[null,null,null,null,null,null,null,"","","","",""]
[null,null,null,null,null,null,null,"","","","",""]
[null,null,null,null,null,null,null,"","","","",""]
[null,null,null,null,null,null,null,"","","","",""]
[null,null,null,null,null,null,null,"","","","",""]
[null,null,null,null,null,null,null,"","","","",""]
[null,null,null,null,null,null,null,"","","","",""]
[null,null,null,null,null,null,null,"","","","",""]
[null,null,null,null,null,null,null,"","","","",""]
[null,null,null,null,null,null,null,"","","","",""]
[null,null,null,null,null,null,null,"","","","",""]
[null,null,null,null,null,null,null,"","","","",""]
[null,null,null,null,null,null,null,"","","","",""]
[null,null,null,null,null,null,null,"","","","",""]
[null,null,null,null,null,null,null,"","","","",""]
[null,null,null,null,null,null,null,"","","","",""]
[null,null,null,null,null,null,null,"","","","",""]
[null,null,null,null,null,null,null,"","","","",""]
[null,null,null,null,null,null,null,"","","","",""]
[null,null,null,null,null,null,null,"","","","",""]
[null,null,null,null,null,null,null,"","","","",""]
[null,null,null,null,null,null,null,"","","","",""]
[null,null,null,null,null,null,null,"","","","",""]
[null,null,null,null,null,null,null,"","","","",""]
[null,null,null,null,null,null,null,"","","","",""]
[null,null,null,null,null,null,null,"","","","",""]
[null,null,null,null,null,null,null,"","","","",""]
[null,null,null,null,null,null,null,"","","","",""]
[null,null,null,null,null,null,null,"","","","",""]
[null,null,null,null,null,null,null,"","","","",""]
[null,null,null,null,null,null,null,"","","","",""]
[null,null,null,null,null,null,null,"","","","",""]
[null,null,null,null,null,null,null,"","","","",""]
[null,null,null,null,null,null,null,"","","","",""]
[null,null,null,null,null,null,null,"","","","",""]
[null,null,null,null,null,null,null,"","","","",""]
[null,null,null,null,null,null,null,"","","","",""]
[null,null,null,null,null,null,null,"","","","",""]
[null,null,null,null,null,null,null,"","","","",""]
[null,null,null,null,null,null,null,"","","","",""]
[null,null,null,null,null,null,null,"","","","",""]
[null,null,null,null,null,null,null,"","","","",""]
[null,null,null,null,null,null,null,"","","","",""]
[null,null,null,null,null,null,null,"","","","",""]
[null,null,null,null,null,null,null,"","","","",""]
[null,null,null,null,null,null,null,"","","","",""]
[null,null,null,null,null,null,null,"","","","",""]
[null,null,null,null,null,null,null,"","","","",""]
[null,null,null,null,null,null,null,{"$f":"nenrei(D660,E660)","v":""},{"$f":"nenreikubun(D660,E660)","v":""},{"$f":"IF(I660=\"幼児\",stdbw2000(C660,H660,F660),\"\")","v":""},{"$f":"himando(G660,J660)","v":""},{"$f":"hikubun1j(K660)","v":""}]
[null,null,null,null,null,null,null,"","","","",""]
[null,null,null,null,null,null,null,"","","","",""]
[null,null,null,null,null,null,null,"","","","",""]
[null,null,null,null,null,null,null,"","","","",""]
[null,null,null,null,null,null,null,"","","","",""]
[null,null,null,null,null,null,null,"","","","",""]
[null,null,null,null,null,null,null,"","","","",""]
[null,null,null,null,null,null,null,"","","","",""]
[null,null,null,null,null,null,null,"","","","",""]
[null,null,null,null,null,null,null,"","","","",""]
[null,null,null,null,null,null,null,"","","","",""]
[null,null,null,null,null,null,null,"","","","",""]
[null,null,null,null,null,null,null,"","","","",""]
[null,null,null,null,null,null,null,"","","","",""]
[null,null,null,null,null,null,null,"","","","",""]
[null,null,null,null,null,null,null,"","","","",""]
[null,null,null,null,null,null,null,"","","","",""]
[null,null,null,null,null,null,null,"","","","",""]
[null,null,null,null,null,null,null,"","","","",""]
[null,null,null,null,null,null,null,"","","","",""]
[null,null,null,null,null,null,null,"","","","",""]
[null,null,null,null,null,null,null,"","","","",""]
[null,null,null,null,null,null,null,"","","","",""]
[null,null,null,null,null,null,null,"","","","",""]
[null,null,null,null,null,null,null,"","","","",""]
[null,null,null,null,null,null,null,"","","","",""]
[null,null,null,null,null,null,null,"","","","",""]
[null,null,null,null,null,null,null,"","","","",""]
[null,null,null,null,null,null,null,"","","","",""]
[null,null,null,null,null,null,null,"","","","",""]
[null,null,null,null,null,null,null,"","","","",""]
[null,null,null,null,null,null,null,"","","","",""]
[null,null,null,null,null,null,null,"","","","",""]
[null,null,null,null,null,null,null,"","","","",""]
[null,null,null,null,null,null,null,"","","","",""]
[null,null,null,null,null,null,null,"","","","",""]
[null,null,null,null,null,null,null,"","","","",""]
[null,null,null,null,null,null,null,"","","","",""]
[null,null,null,null,null,null,null,"","","","",""]
[null,null,null,null,null,null,null,"","","","",""]
[null,null,null,null,null,null,null,"","","","",""]
[null,null,null,null,null,null,null,"","","","",""]
[null,null,null,null,null,null,null,"","","","",""]
[null,null,null,null,null,null,null,"","","","",""]
[null,null,null,null,null,null,null,"","","","",""]
[null,null,null,null,null,null,null,"","","","",""]
[null,null,null,null,null,null,null,"","","","",""]
[null,null,null,null,null,null,null,"","","","",""]
[null,null,null,null,null,null,null,"","","","",""]
[null,null,null,null,null,null,null,"","","","",""]
[null,null,null,null,null,null,null,"","","","",""]
[null,null,null,null,null,null,null,"","","","",""]
[null,null,null,null,null,null,null,"","","","",""]
[null,null,null,null,null,null,null,"","","","",""]
[null,null,null,null,null,null,null,"","","","",""]
[null,null,null,null,null,null,null,"","","","",""]
[null,null,null,null,null,null,null,"","","","",""]
[null,null,null,null,null,null,null,"","","","",""]
[null,null,null,null,null,null,null,"","","","",""]
[null,null,null,null,null,null,null,"","","","",""]
[null,null,null,null,null,null,null,"","","","",""]
[null,null,null,null,null,null,null,"","","","",""]
[null,null,null,null,null,null,null,"","","","",""]
[null,null,null,null,null,null,null,{"$f":"nenrei(D724,E724)","v":""},{"$f":"nenreikubun(D724,E724)","v":""},{"$f":"IF(I724=\"幼児\",stdbw2000(C724,H724,F724),\"\")","v":""},{"$f":"himando(G724,J724)","v":""},{"$f":"hikubun1j(K724)","v":""}]
[null,null,null,null,null,null,null,"","","","",""]
[null,null,null,null,null,null,null,"","","","",""]
[null,null,null,null,null,null,null,"","","","",""]
[null,null,null,null,null,null,null,"","","","",""]
[null,null,null,null,null,null,null,"","","","",""]
[null,null,null,null,null,null,null,"","","","",""]
[null,null,null,null,null,null,null,"","","","",""]
[null,null,null,null,null,null,null,"","","","",""]
[null,null,null,null,null,null,null,"","","","",""]
[null,null,null,null,null,null,null,"","","","",""]
[null,null,null,null,null,null,null,"","","","",""]
[null,null,null,null,null,null,null,"","","","",""]
[null,null,null,null,null,null,null,"","","","",""]
[null,null,null,null,null,null,null,"","","","",""]
[null,null,null,null,null,null,null,"","","","",""]
[null,null,null,null,null,null,null,"","","","",""]
[null,null,null,null,null,null,null,"","","","",""]
[null,null,null,null,null,null,null,"","","","",""]
[null,null,null,null,null,null,null,"","","","",""]
[null,null,null,null,null,null,null,"","","","",""]
[null,null,null,null,null,null,null,"","","","",""]
[null,null,null,null,null,null,null,"","","","",""]
[null,null,null,null,null,null,null,"","","","",""]
[null,null,null,null,null,null,null,"","","","",""]
[null,null,null,null,null,null,null,"","","","",""]
[null,null,null,null,null,null,null,"","","","",""]
[null,null,null,null,null,null,null,"","","","",""]
[null,null,null,null,null,null,null,"","","","",""]
[null,null,null,null,null,null,null,"","","","",""]
[null,null,null,null,null,null,null,"","","","",""]
[null,null,null,null,null,null,null,"","","","",""]
[null,null,null,null,null,null,null,"","","","",""]
[null,null,null,null,null,null,null,"","","","",""]
[null,null,null,null,null,null,null,"","","","",""]
[null,null,null,null,null,null,null,"","","","",""]
[null,null,null,null,null,null,null,"","","","",""]
[null,null,null,null,null,null,null,"","","","",""]
[null,null,null,null,null,null,null,"","","","",""]
[null,null,null,null,null,null,null,"","","","",""]
[null,null,null,null,null,null,null,"","","","",""]
[null,null,null,null,null,null,null,"","","","",""]
[null,null,null,null,null,null,null,"","","","",""]
[null,null,null,null,null,null,null,"","","","",""]
[null,null,null,null,null,null,null,"","","","",""]
[null,null,null,null,null,null,null,"","","","",""]
[null,null,null,null,null,null,null,"","","","",""]
[null,null,null,null,null,null,null,"","","","",""]
[null,null,null,null,null,null,null,"","","","",""]
[null,null,null,null,null,null,null,"","","","",""]
[null,null,null,null,null,null,null,"","","","",""]
[null,null,null,null,null,null,null,"","","","",""]
[null,null,null,null,null,null,null,"","","","",""]
[null,null,null,null,null,null,null,"","","","",""]
[null,null,null,null,null,null,null,"","","","",""]
[null,null,null,null,null,null,null,"","","","",""]
[null,null,null,null,null,null,null,"","","","",""]
[null,null,null,null,null,null,null,"","","","",""]
[null,null,null,null,null,null,null,"","","","",""]
[null,null,null,null,null,null,null,"","","","",""]
[null,null,null,null,null,null,null,"","","","",""]
[null,null,null,null,null,null,null,"","","","",""]
[null,null,null,null,null,null,null,"","","","",""]
[null,null,null,null,null,null,null,"","","","",""]
[null,null,null,null,null,null,null,{"$f":"nenrei(D788,E788)","v":""},{"$f":"nenreikubun(D788,E788)","v":""},{"$f":"IF(I788=\"幼児\",stdbw2000(C788,H788,F788),\"\")","v":""},{"$f":"himando(G788,J788)","v":""},{"$f":"hikubun1j(K788)","v":""}]
[null,null,null,null,null,null,null,"","","","",""]
[null,null,null,null,null,null,null,"","","","",""]
[null,null,null,null,null,null,null,"","","","",""]
[null,null,null,null,null,null,null,"","","","",""]
[null,null,null,null,null,null,null,"","","","",""]
[null,null,null,null,null,null,null,"","","","",""]
[null,null,null,null,null,null,null,"","","","",""]
[null,null,null,null,null,null,null,"","","","",""]
[null,null,null,null,null,null,null,"","","","",""]
[null,null,null,null,null,null,null,"","","","",""]
[null,null,null,null,null,null,null,"","","","",""]
[null,null,null,null,null,null,null,"","","","",""]
[null,null,null,null,null,null,null,"","","","",""]
[null,null,null,null,null,null,null,"","","","",""]
[null,null,null,null,null,null,null,"","","","",""]
[null,null,null,null,null,null,null,"","","","",""]
[null,null,null,null,null,null,null,"","","","",""]
[null,null,null,null,null,null,null,"","","","",""]
[null,null,null,null,null,null,null,"","","","",""]
[null,null,null,null,null,null,null,"","","","",""]
[null,null,null,null,null,null,null,"","","","",""]
[null,null,null,null,null,null,null,"","","","",""]
[null,null,null,null,null,null,null,"","","","",""]
[null,null,null,null,null,null,null,"","","","",""]
[null,null,null,null,null,null,null,"","","","",""]
[null,null,null,null,null,null,null,"","","","",""]
[null,null,null,null,null,null,null,"","","","",""]
[null,null,null,null,null,null,null,"","","","",""]
[null,null,null,null,null,null,null,"","","","",""]
[null,null,null,null,null,null,null,"","","","",""]
[null,null,null,null,null,null,null,"","","","",""]
[null,null,null,null,null,null,null,"","","","",""]
[null,null,null,null,null,null,null,"","","","",""]
[null,null,null,null,null,null,null,"","","","",""]
[null,null,null,null,null,null,null,"","","","",""]
[null,null,null,null,null,null,null,"","","","",""]
[null,null,null,null,null,null,null,"","","","",""]
[null,null,null,null,null,null,null,"","","","",""]
[null,null,null,null,null,null,null,"","","","",""]
[null,null,null,null,null,null,null,"","","","",""]
[null,null,null,null,null,null,null,"","","","",""]
[null,null,null,null,null,null,null,"","","","",""]
[null,null,null,null,null,null,null,"","","","",""]
[null,null,null,null,null,null,null,"","","","",""]
[null,null,null,null,null,null,null,"","","","",""]
[null,null,null,null,null,null,null,"","","","",""]
[null,null,null,null,null,null,null,"","","","",""]
[null,null,null,null,null,null,null,"","","","",""]
[null,null,null,null,null,null,null,"","","","",""]
[null,null,null,null,null,null,null,"","","","",""]
[null,null,null,null,null,null,null,"","","","",""]
[null,null,null,null,null,null,null,"","","","",""]
[null,null,null,null,null,null,null,"","","","",""]
[null,null,null,null,null,null,null,"","","","",""]
[null,null,null,null,null,null,null,"","","","",""]
[null,null,null,null,null,null,null,"","","","",""]
[null,null,null,null,null,null,null,"","","","",""]
[null,null,null,null,null,null,null,"","","","",""]
[null,null,null,null,null,null,null,"","","","",""]
[null,null,null,null,null,null,null,"","","","",""]
[null,null,null,null,null,null,null,"","","","",""]
[null,null,null,null,null,null,null,"","","","",""]
[null,null,null,null,null,null,null,"","","","",""]
[null,null,null,null,null,null,null,{"$f":"nenrei(D852,E852)","v":""},{"$f":"nenreikubun(D852,E852)","v":""},{"$f":"IF(I852=\"幼児\",stdbw2000(C852,H852,F852),\"\")","v":""},{"$f":"himando(G852,J852)","v":""},{"$f":"hikubun1j(K852)","v":""}]
[null,null,null,null,null,null,null,"","","","",""]
[null,null,null,null,null,null,null,"","","","",""]
[null,null,null,null,null,null,null,"","","","",""]
[null,null,null,null,null,null,null,"","","","",""]
[null,null,null,null,null,null,null,"","","","",""]
[null,null,null,null,null,null,null,"","","","",""]
[null,null,null,null,null,null,null,"","","","",""]
[null,null,null,null,null,null,null,"","","","",""]
[null,null,null,null,null,null,null,"","","","",""]
[null,null,null,null,null,null,null,"","","","",""]
[null,null,null,null,null,null,null,"","","","",""]
[null,null,null,null,null,null,null,"","","","",""]
[null,null,null,null,null,null,null,"","","","",""]
[null,null,null,null,null,null,null,"","","","",""]
[null,null,null,null,null,null,null,"","","","",""]
[null,null,null,null,null,null,null,"","","","",""]
[null,null,null,null,null,null,null,"","","","",""]
[null,null,null,null,null,null,null,"","","","",""]
[null,null,null,null,null,null,null,"","","","",""]
[null,null,null,null,null,null,null,"","","","",""]
[null,null,null,null,null,null,null,"","","","",""]
[null,null,null,null,null,null,null,"","","","",""]
[null,null,null,null,null,null,null,"","","","",""]
[null,null,null,null,null,null,null,"","","","",""]
[null,null,null,null,null,null,null,"","","","",""]
[null,null,null,null,null,null,null,"","","","",""]
[null,null,null,null,null,null,null,"","","","",""]
[null,null,null,null,null,null,null,"","","","",""]
[null,null,null,null,null,null,null,"","","","",""]
[null,null,null,null,null,null,null,"","","","",""]
[null,null,null,null,null,null,null,"","","","",""]
[null,null,null,null,null,null,null,"","","","",""]
[null,null,null,null,null,null,null,"","","","",""]
[null,null,null,null,null,null,null,"","","","",""]
[null,null,null,null,null,null,null,"","","","",""]
[null,null,null,null,null,null,null,"","","","",""]
[null,null,null,null,null,null,null,"","","","",""]
[null,null,null,null,null,null,null,"","","","",""]
[null,null,null,null,null,null,null,"","","","",""]
[null,null,null,null,null,null,null,"","","","",""]
[null,null,null,null,null,null,null,"","","","",""]
[null,null,null,null,null,null,null,"","","","",""]
[null,null,null,null,null,null,null,"","","","",""]
[null,null,null,null,null,null,null,"","","","",""]
[null,null,null,null,null,null,null,"","","","",""]
[null,null,null,null,null,null,null,"","","","",""]
[null,null,null,null,null,null,null,"","","","",""]
[null,null,null,null,null,null,null,"","","","",""]
[null,null,null,null,null,null,null,"","","","",""]
[null,null,null,null,null,null,null,"","","","",""]
[null,null,null,null,null,null,null,"","","","",""]
[null,null,null,null,null,null,null,"","","","",""]
[null,null,null,null,null,null,null,"","","","",""]
[null,null,null,null,null,null,null,"","","","",""]
[null,null,null,null,null,null,null,"","","","",""]
[null,null,null,null,null,null,null,"","","","",""]
[null,null,null,null,null,null,null,"","","","",""]
[null,null,null,null,null,null,null,"","","","",""]
[null,null,null,null,null,null,null,"","","","",""]
[null,null,null,null,null,null,null,"","","","",""]
[null,null,null,null,null,null,null,"","","","",""]
[null,null,null,null,null,null,null,"","","","",""]
[null,null,null,null,null,null,null,"","","","",""]
[null,null,null,null,null,null,null,{"$f":"nenrei(D916,E916)","v":""},{"$f":"nenreikubun(D916,E916)","v":""},{"$f":"IF(I916=\"幼児\",stdbw2000(C916,H916,F916),\"\")","v":""},{"$f":"himando(G916,J916)","v":""},{"$f":"hikubun1j(K916)","v":""}]
[null,null,null,null,null,null,null,"","","","",""]
[null,null,null,null,null,null,null,"","","","",""]
[null,null,null,null,null,null,null,"","","","",""]
[null,null,null,null,null,null,null,"","","","",""]
[null,null,null,null,null,null,null,"","","","",""]
[null,null,null,null,null,null,null,"","","","",""]
[null,null,null,null,null,null,null,"","","","",""]
[null,null,null,null,null,null,null,"","","","",""]
[null,null,null,null,null,null,null,"","","","",""]
[null,null,null,null,null,null,null,"","","","",""]
[null,null,null,null,null,null,null,"","","","",""]
[null,null,null,null,null,null,null,"","","","",""]
[null,null,null,null,null,null,null,"","","","",""]
[null,null,null,null,null,null,null,"","","","",""]
[null,null,null,null,null,null,null,"","","","",""]
[null,null,null,null,null,null,null,"","","","",""]
[null,null,null,null,null,null,null,"","","","",""]
[null,null,null,null,null,null,null,"","","","",""]
[null,null,null,null,null,null,null,"","","","",""]
[null,null,null,null,null,null,null,"","","","",""]
[null,null,null,null,null,null,null,"","","","",""]
[null,null,null,null,null,null,null,"","","","",""]
[null,null,null,null,null,null,null,"","","","",""]
[null,null,null,null,null,null,null,"","","","",""]
[null,null,null,null,null,null,null,"","","","",""]
[null,null,null,null,null,null,null,"","","","",""]
[null,null,null,null,null,null,null,"","","","",""]
[null,null,null,null,null,null,null,"","","","",""]
[null,null,null,null,null,null,null,"","","","",""]
[null,null,null,null,null,null,null,"","","","",""]
[null,null,null,null,null,null,null,"","","","",""]
[null,null,null,null,null,null,null,"","","","",""]
[null,null,null,null,null,null,null,"","","","",""]
[null,null,null,null,null,null,null,"","","","",""]
[null,null,null,null,null,null,null,"","","","",""]
[null,null,null,null,null,null,null,"","","","",""]
[null,null,null,null,null,null,null,"","","","",""]
[null,null,null,null,null,null,null,"","","","",""]
[null,null,null,null,null,null,null,"","","","",""]
[null,null,null,null,null,null,null,"","","","",""]
[null,null,null,null,null,null,null,"","","","",""]
[null,null,null,null,null,null,null,"","","","",""]
[null,null,null,null,null,null,null,"","","","",""]
[null,null,null,null,null,null,null,"","","","",""]
[null,null,null,null,null,null,null,"","","","",""]
[null,null,null,null,null,null,null,"","","","",""]
[null,null,null,null,null,null,null,"","","","",""]
[null,null,null,null,null,null,null,"","","","",""]
[null,null,null,null,null,null,null,"","","","",""]
[null,null,null,null,null,null,null,"","","","",""]
[null,null,null,null,null,null,null,"","","","",""]
[null,null,null,null,null,null,null,"","","","",""]
[null,null,null,null,null,null,null,"","","","",""]
[null,null,null,null,null,null,null,"","","","",""]
[null,null,null,null,null,null,null,"","","","",""]
[null,null,null,null,null,null,null,"","","","",""]
[null,null,null,null,null,null,null,"","","","",""]
[null,null,null,null,null,null,null,"","","","",""]
[null,null,null,null,null,null,null,"","","","",""]
[null,null,null,null,null,null,null,"","","","",""]
[null,null,null,null,null,null,null,"","","","",""]
[null,null,null,null,null,null,null,"","","","",""]
[null,null,null,null,null,null,null,"","","","",""]
[null,null,null,null,null,null,null,{"$f":"nenrei(D980,E980)","v":""},{"$f":"nenreikubun(D980,E980)","v":""},{"$f":"IF(I980=\"幼児\",stdbw2000(C980,H980,F980),\"\")","v":""},{"$f":"himando(G980,J980)","v":""},{"$f":"hikubun1j(K980)","v":""}]
[null,null,null,null,null,null,null,"","","","",""]
[null,null,null,null,null,null,null,"","","","",""]
[null,null,null,null,null,null,null,"","","","",""]
[null,null,null,null,null,null,null,"","","","",""]
[null,null,null,null,null,null,null,"","","","",""]
[null,null,null,null,null,null,null,"","","","",""]
[null,null,null,null,null,null,null,"","","","",""]
[null,null,null,null,null,null,null,"","","","",""]
[null,null,null,null,null,null,null,"","","","",""]
[null,null,null,null,null,null,null,"","","","",""]
[null,null,null,null,null,null,null,"","","","",""]
[null,null,null,null,null,null,null,"","","","",""]
[null,null,null,null,null,null,null,"","","","",""]
[null,null,null,null,null,null,null,"","","","",""]
[null,null,null,null,null,null,null,"","","","",""]
[null,null,null,null,null,null,null,"","","","",""]
[null,null,null,null,null,null,null,"","","","",""]
[null,null,null,null,null,null,null,"","","","",""]
[null,null,null,null,null,null,null,"","","","",""]
[null,null,null,null,null,null,null,"","","","",""]
[null,null,null,null,null,null,null,"","","","",""]
[null,null,null,null,null,null,null,"","","","",""]
[null,null,null,null,null,null,null,"","","","",""]
[null,null,null,null,null,null,null,"","","","",""]
[null,null,null,null,null,null,null,"","","","",""]
[null,null,null,null,null,null,null,"","","","",""]
[null,null,null,null,null,null,null,"","","","",""]
[null,null,null,null,null,null,null,"","","","",""]
[null,null,null,null,null,null,null,"","","","",""]
[null,null,null,null,null,null,null,"","","","",""]
[null,null,null,null,null,null,null,"","","","",""]
[null,null,null,null,null,null,null,"","","","",""]
[null,null,null,null,null,null,null,"","","","",""]
[null,null,null,null,null,null,null,"","","","",""]
[null,null,null,null,null,null,null,"","","","",""]
[null,null,null,null,null,null,null,"","","","",""]
[null,null,null,null,null,null,null,"","","","",""]
[null,null,null,null,null,null,null,"","","","",""]
[null,null,null,null,null,null,null,"","","","",""]

{"sheet":"早見表","index":3,"n_rows":55,"n_cols":7,"rows_kept":55,"cut":false,"hidden":false,"merged":[[54,0,54,6],[0,0,0,6],[1,1,1,3],[1,4,1,6],[53,0,53,6]]}
["身長別標準体重の早見表（３歳以上６歳未満の幼児）\n平成12年乳幼児身体発育調査の結果に基づく"]
[null,"男子",null,null,"女子"]
["身長(cm)","標準体重(kg)","やせ※1","肥満※2","標準体重(kg)","やせ※1","肥満※2"]
[70,8.4593000000000025,7.1904050000000019,9.7281950000000013,8.2309999999999999,6.9963499999999996,9.4656499999999983]
[71,8.6331600000000019,7.3381860000000012,9.9281340000000018,8.3962900000000005,7.1368464999999999,9.6557335000000002]
[72,8.8111400000000017,7.4894690000000015,10.132811000000002,8.5665599999999991,7.2815759999999994,9.8515439999999987]
[73,8.9932400000000019,7.644254000000001,10.342226000000002,8.741810000000001,7.4305385000000008,10.053081500000001]
[74,9.1794600000000024,7.8025410000000015,10.556379000000002,8.9220400000000009,7.5837340000000006,10.260346]
[75,9.3698000000000032,7.9643300000000021,10.775270000000003,9.1072500000000005,7.7411625000000006,10.4733375]
[76,9.5642600000000009,8.1296210000000002,10.998899,9.2974399999999999,7.9028239999999998,10.692055999999999]
[77,9.7628400000000024,8.2984140000000011,11.227266000000002,9.4926100000000009,8.068718500000001,10.916501500000001]
[78,9.9655400000000025,8.4707090000000012,11.460371000000002,9.6927599999999998,8.2388459999999988,11.146673999999999]
[79,10.172360000000003,8.6465060000000022,11.698214000000002,9.8978900000000003,8.4132064999999994,11.382573499999999]
[80,10.383300000000002,8.8258050000000008,11.940795000000001,10.108000000000001,8.591800000000001,11.6242]
[81,10.598360000000001,9.0086060000000003,12.188114000000001,10.323090000000001,8.7746265000000001,11.871553499999999]
[82,10.817540000000003,9.1949090000000027,12.440171000000003,10.54316,8.9616860000000003,12.124633999999999]
[83,11.040840000000003,9.3847140000000024,12.696966000000002,10.76821,9.1529784999999997,12.383441499999998]
[84,11.268260000000003,9.5780210000000032,12.958499000000003,10.998240000000001,9.3485040000000001,12.647976]
[85,11.4998,9.7748299999999997,13.224769999999999,11.23325,9.5482624999999999,12.918237499999998]
[86,11.735460000000002,9.9751410000000007,13.495779000000001,11.473239999999999,9.7522539999999989,13.194225999999997]
[87,11.975240000000003,10.178954000000003,13.771526000000003,11.718209999999997,9.9604784999999971,13.475941499999996]
[88,12.219140000000003,10.386269000000002,14.052011000000002,11.968159999999999,10.172936,13.763383999999999]
[89,12.467160000000002,10.597086000000001,14.337234,12.223089999999997,10.389626499999997,14.056553499999996]
[90,12.7193,10.811405000000001,14.627194999999999,12.483000000000002,10.610550000000002,14.355450000000001]
[91,12.975560000000003,11.029226000000003,14.921894000000004,12.747890000000003,10.835706500000002,14.660073500000003]
[92,13.235940000000003,11.250549000000003,15.221331000000003,13.017760000000001,11.065096,14.970424]
[93,13.500440000000003,11.475374000000002,15.525506000000002,13.292610000000002,11.298718500000001,15.2865015]
[94,13.76906,11.703700999999999,15.834418999999999,13.572439999999999,11.536573999999998,15.608305999999997]
[95,14.0418,11.93553,16.148070000000001,13.857250000000002,11.778662500000001,15.935837500000002]
[96,14.318660000000001,12.170861,16.466459,14.147039999999999,12.024983999999998,16.269095999999998]
[97,14.599640000000003,12.409694000000002,16.789586000000003,14.441809999999998,12.275538499999998,16.608081499999997]
[98,14.884740000000004,12.652029000000004,17.117451000000003,14.741560000000002,12.530326000000001,16.952794000000001]
[99,15.173960000000003,12.897866000000002,17.450054000000002,15.046290000000001,12.789346500000001,17.303233500000001]
[100,15.467300000000002,13.147205000000001,17.787395,15.356,13.0526,17.659399999999998]
[101,15.764760000000001,13.400046,18.129473999999998,15.670689999999999,13.320086499999999,18.021293499999999]
[102,16.066340000000004,13.656389000000003,18.476291000000003,15.990359999999997,13.591805999999997,18.388913999999996]
[103,16.372039999999998,13.916233999999998,18.827845999999997,16.315010000000001,13.867758500000001,18.762261500000001]
[104,16.68186,14.179581000000001,19.184138999999998,16.644640000000003,14.147944000000003,19.141336000000003]
[105,16.995800000000003,14.446430000000001,19.545170000000002,16.97925,14.4323625,19.526137499999997]
[106,17.313860000000002,14.716781000000001,19.910938999999999,17.318840000000002,14.721014,19.916665999999999]
[107,17.636040000000005,14.990634000000004,20.281446000000003,17.663409999999999,15.013898499999998,20.312921499999998]
[108,17.962340000000005,15.267989000000004,20.656691000000002,18.01296,15.311015999999999,20.714903999999997]
[109,18.292760000000005,15.548846000000003,21.036674000000005,18.367489999999997,15.612366499999997,21.122613499999993]
[110,18.627300000000005,15.833205000000005,21.421395000000004,18.726999999999997,15.917949999999998,21.536049999999996]
[111,18.965960000000006,16.121066000000006,21.810854000000006,19.09149,16.227766500000001,21.955213499999999]
[112,19.308740000000007,16.412429000000007,22.205051000000008,19.46096,16.541816000000001,22.380103999999999]
[113,19.655640000000002,16.707294000000001,22.603985999999999,19.835410000000003,16.860098500000003,22.810721500000003]
[114,20.006660000000004,17.005661000000003,23.007659000000004,20.214839999999995,17.182613999999994,23.247065999999993]
[115,20.361800000000006,17.307530000000003,23.416070000000005,20.599249999999998,17.509362499999998,23.689137499999994]
[116,20.721060000000008,17.612901000000008,23.829219000000009,20.988640000000004,17.840344000000002,24.136936000000002]
[117,21.084440000000004,17.921774000000003,24.247106000000002,21.383009999999999,18.175558499999998,24.590461499999996]
[118,21.45194,18.234148999999999,24.669730999999999,21.782360000000004,18.515006000000003,25.049714000000002]
[119,21.823560000000004,18.550026000000003,25.097094000000002,22.186690000000006,18.858686500000005,25.514693500000003]
["※1 やせ：やせすぎ，又はやせ。（表中の各身長における数値以下が該当。）  "]
["※2 肥満：ふとりぎみ，ややふとりすぎ，又はふとりすぎ。（表中の各身長における数値以上が該当。） "]